Workbook

Sheet Datos (hidden)
B2: Meses | D2: Años | G2: FON
A3: 1 | B3: Enero | D3: 2013 | G3: FONP
A4: 2 | B4: Febrero | D4: 2016 | G4: FONB
A5: 3 | B5: Marzo | D5: 2018 | G5: FONE
A6: 4 | B6: Abril | D6: 2024 | G6: FONI
A7: 5 | B7: Mayo
A8: 6 | B8: Junio
A9: 7 | B9: Julio
A10: 8 | B10: Agosto
A11: 9 | B11: Setiembre
A12: 10 | B12: Octubre
A13: 11 | B13: Noviembre
A14: 12 | B14: Diciembre
M15: MICROREDES | P15: CODDISA | Q15: CODRED | R15: MICRORED | T15: ESTABLECIMIENTOS
B16: DISAS | F16: COD_DISA | G16: COD_RED | H16: DESC_RED | I16: CODDISA | J16: CODRED | K16: RED | M16: COD_MIC | N16: COD_DISA | O16: COD_RED | P16: DESC_MICRO | Q16: cod_micro | R16: Columna1 | T16: COD_ESTAB | U16: DESC_ESTAB | V16: COD_2000 | W16: TIPOESTAB | X16: COD_DPTO | Y16: COD_PROV | Z16: COD_DIST | AA16: COD_DISA | AB16: COD_RED | AC16: COD_MIC | AD16: FED | AE16: cod_micro | AF16: DIST | AG16: DISARED | AL16: cod_dpto | AM16: cod_prov | AN16: desc_prov | AO16: cod_provi | AP16: PROVINCIA | AS16: COD_DPTO | AT16: COD_PROV | AU16: COD_DIST | AV16: CODIGO | AW16: DESC_DIST | AX16: LONG_POBLA | AY16: cod_provi | AZ16: cod_distri | BA16: distrito
A17: 11 | B17: CUSCO | C17: 11-CUSCO | F17: 11 | G17: 11 | H17: (ALL) | I17: 11 | J17: 06 | K17: 11-(ALL) | M17: 13 | N17: 11 | O17: 01 | P17: ACOMAYO | Q17: =CONCATENATE(O17,M17) -> 0113 | R17: 13-ACOMAYO | T17: 000026386 | U17: MENTAL QUILLABAMBA | V17: 000026386 | X17: 08 | Y17: 09 | Z17: 01 | AA17: 11 | AB17: 03 | AC17: 01 | AD17: I-2 | AE17: =CONCATENATE(AB17,AC17) -> 0301 | AF17: 1 | AG17: 108 | AH17: =CONCATENATE(AB17,AC17,"-",U17) -> 0301-MENTAL QUILLABAMBA | AL17: 00 | AM17: 00 | AN17: (ALL) | AO17: 0000 | AP17: 00-(ALL) | AS17: 08 | AT17: 01 | AU17: 01 | AV17: =CONCATENATE(AT17,AU17) -> 0101 | AW17: CUSCO | AX17: 0 | AY17: =CONCATENATE(AS17,AT17) -> 0801 | AZ17: =CONCATENATE(AS17,AT17,AU17) -> 080101 | BA17: =CONCATENATE(AT17,AU17,"-",AW17) -> 0101-CUSCO
F18: 11 | G18: 00 | H18: HOSPITAL DE APOYO DEPARTAMENTAL CUSCO | I18: 11 | J18: 00 | K18: 00-HOSPITAL DE APOYO DEPARTAMENTAL CUSCO | M18: 03 | N18: 11 | O18: 02 | P18: ANTA | Q18: =CONCATENATE(O18,M18) -> 0203 | R18: 03-ANTA | T18: 000027948 | U18: ESSALUD PICHARI | V18: 000027948 | X18: 08 | Y18: 09 | Z18: 10 | AA18: 11 | AB18: 05 | AC18: 02 | AD18: I-2 | AE18: =CONCATENATE(AB18,AC18) -> 0502 | AF18: 6 | AG18: 308 | AH18: =CONCATENATE(AB18,AC18,"-",U18) -> 0502-ESSALUD PICHARI | AL18: 08 | AM18: 01 | AN18: CUSCO | AO18: 0801 | AP18: 01-CUSCO | AS18: 08 | AT18: 01 | AU18: 02 | AV18: 0102 | AW18: CCORCA | AX18: 0 | AY18: =CONCATENATE(AS18,AT18) -> 0801 | AZ18: =CONCATENATE(AS18,AT18,AU18) -> 080102 | BA18: =CONCATENATE(AT18,AU18,"-",AW18) -> 0102-CCORCA
F19: 11 | G19: 01 | H19: CUSCO SUR | I19: 11 | J19: 01 | K19: 01-CUSCO SUR | M19: 01 | N19: 11 | O19: 02 | P19: BELEMPAMPA | Q19: 0201 | R19: 01-BELEMPAMPA | T19: 000002289 | U19: HOSPITAL DE APOYO DEPARTAMENTAL CUSCO | V19: 000002289 | W19: 1 | X19: 08 | Y19: 01 | Z19: 01 | AA19: 11 | AB19: 00 | AC19: 00 | AD19: III-1 | AE19: 0000 | AF19: 5 | AG19: 208 | AH19: =CONCATENATE(AB19,AC19,"-",U19) -> 0000-HOSPITAL DE APOYO DEPARTAMENTAL CUSCO | AL19: 08 | AM19: 02 | AN19: ACOMAYO | AO19: 0802 | AP19: 02-ACOMAYO | AS19: 08 | AT19: 01 | AU19: 03 | AV19: 0103 | AW19: POROY | AX19: 0 | AY19: 0801 | AZ19: 080103 | BA19: 0103-POROY
F20: 11 | G20: 02 | H20: CUSCO NORTE | I20: 11 | J20: 02 | K20: 02-CUSCO NORTE | M20: 06 | N20: 11 | O20: 02 | P20: CALCA | Q20: 0206 | R20: 06-CALCA | T20: 000010041 | U20: ADOLFO GUEVARA VELASCO | V20: 000010041 | W20: 1 | X20: 08 | Y20: 01 | Z20: 08 | AA20: 11 | AB20: 02 | AC20: 02 | AD20: III-1 | AE20: 0202 | AF20: 2 | AG20: 208 | AH20: =CONCATENATE(AB20,AC20,"-",U20) -> 0202-ADOLFO GUEVARA VELASCO | AL20: 08 | AM20: 03 | AN20: ANTA | AO20: 0803 | AP20: 03-ANTA | AS20: 08 | AT20: 01 | AU20: 04 | AV20: 0104 | AW20: SAN JERONIMO | AX20: 0 | AY20: 0801 | AZ20: 080104 | BA20: 0104-SAN JERONIMO
B21: Meses | F21: 11 | G21: 03 | H21: LA CONVENCION | I21: 11 | J21: 03 | K21: 03-LA CONVENCION | M21: 03 | N21: 11 | O21: 04 | P21: COMBAPATA | Q21: 0403 | R21: 03-COMBAPATA | T21: 000002420 | U21: ACCOCUNCA | V21: 000002420 | W21: 3 | X21: 08 | Y21: 08 | Z21: 08 | AA21: 11 | AB21: 04 | AC21: 06 | AD21: I-2 | AE21: 0406 | AF21: 5 | AG21: 308 | AH21: =CONCATENATE(AB21,AC21,"-",U21) -> 0406-ACCOCUNCA | AL21: 08 | AM21: 04 | AN21: CALCA | AO21: 0804 | AP21: 04-CALCA | AS21: 08 | AT21: 01 | AU21: 05 | AV21: 0105 | AW21: SAN SEBASTIAN | AX21: 0 | AY21: 0801 | AZ21: 080105 | BA21: 0105-SAN SEBASTIAN
A22: 1 | B22: Enero | F22: 11 | G22: 04 | H22: CANAS-CANCHIS-ESPINAR | I22: 11 | J22: 04 | K22: 04-CANAS-CANCHIS-ESPINAR | M22: 16 | N22: 11 | O22: 01 | P22: CUSCO | Q22: 0116 | R22: 16-CUSCO | T22: 000002423 | U22: IDMA | V22: 000002423 | W22: 3 | X22: 08 | Y22: 09 | Z22: 01 | AA22: 11 | AB22: 03 | AC22: 01 | AD22: I-1 | AE22: 0301 | AF22: 2 | AG22: 208 | AH22: =CONCATENATE(AB22,AC22,"-",U22) -> 0301-IDMA | AL22: 08 | AM22: 05 | AN22: CANAS | AO22: 0805 | AP22: 05-CANAS | AS22: 08 | AT22: 01 | AU22: 06 | AV22: 0106 | AW22: SANTIAGO | AX22: 0 | AY22: 0801 | AZ22: 080106 | BA22: 0106-SANTIAGO
A23: 2 | B23: Febrero | F23: 11 | G23: 05 | H23: KIMBIRI PICHARI | I23: 11 | J23: 05 | K23: 05-KIMBIRI PICHARI | M23: 02 | N23: 11 | O23: 04 | P23: EL DESCANSO | Q23: 0402 | R23: 02-EL DESCANSO | T23: 000002424 | U23: POTRERO | V23: 000002424 | W23: 3 | X23: 08 | Y23: 09 | Z23: 01 | AA23: 11 | AB23: 03 | AC23: 01 | AD23: I-1 | AE23: 0301 | AF23: 5 | AG23: 208 | AH23: 0301-POTRERO | AL23: 08 | AM23: 06 | AN23: CANCHIS | AO23: 0806 | AP23: 06-CANCHIS | AS23: 08 | AT23: 01 | AU23: 07 | AV23: 0107 | AW23: SAYLLA | AX23: 0 | AY23: 0801 | AZ23: 080107 | BA23: 0107-SAYLLA
A24: 3 | B24: Marzo | F24: 11 | G24: 06 | H24: ANTONIO LORENA DEL CUSCO | I24: 11 | J24: 06 | K24: 06-ANTONIO LORENA DEL CUSCO | M24: 00 | N24: 11 | O24: 00 | P24: NO PERTENECE A NINGUNA MICRORED | Q24: 0000 | R24: 00-NO PERTENECE A NINGUNA MICRORED | T24: 000002427 | U24: KITENI | V24: 000002427 | W24: 2 | X24: 08 | Y24: 09 | Z24: 02 | AA24: 11 | AB24: 03 | AC24: 04 | AD24: I-4 | AE24: 0304 | AG24: 308 | AH24: 0304-KITENI | AL24: 08 | AM24: 07 | AN24: CHUMBIVILCAS | AO24: 0807 | AP24: 07-CHUMBIVILCAS | AS24: 08 | AT24: 01 | AU24: 08 | AV24: 0108 | AW24: WANCHAQ | AX24: 0 | AY24: 0801 | AZ24: 080108 | BA24: 0108-WANCHAQ
A25: 4 | B25: Abril | F25: 11 | G25: 07 | H25: SICUANI | I25: 11 | J25: 07 | K25: 07-SICUANI | M25: 00 | N25: 11 | O25: 06 | P25: NO PERTENECE A NINGUNA MICRORED | Q25: 0600 | R25: 00-NO PERTENECE A NINGUNA MICRORED | T25: 000002429 | U25: CIRIALO | V25: 000002429 | W25: 3 | X25: 08 | Y25: 09 | Z25: 02 | AA25: 11 | AB25: 03 | AC25: 01 | AD25: I-2 | AE25: 0301 | AF25: 5 | AG25: 308 | AH25: 0301-CIRIALO | AL25: 08 | AM25: 08 | AN25: ESPINAR | AO25: 0808 | AP25: 08-ESPINAR | AS25: 08 | AT25: 02 | AU25: 01 | AV25: 0201 | AW25: ACOMAYO | AX25: 0 | AY25: 0802 | AZ25: 080201 | BA25: 0201-ACOMAYO
A26: 5 | B26: Mayo | F26: 11 | G26: 08 | H26: CHUMBIVILCAS | I26: 11 | J26: 08 | K26: 08-CHUMBIVILCAS | M26: 01 | N26: 11 | O26: 07 | P26: NO PERTENECE A NINGUNA MICRORED | Q26: 0701 | R26: 01-NO PERTENECE A NINGUNA MICRORED | T26: 000002430 | U26: PAMPA CONCEPCION | V26: 000002430 | W26: 3 | X26: 08 | Y26: 09 | Z26: 02 | AA26: 11 | AB26: 03 | AC26: 01 | AD26: I-2 | AE26: 0301 | AF26: 6 | AG26: 308 | AH26: 0301-PAMPA CONCEPCION | AL26: 08 | AM26: 09 | AN26: LA CONVENCION | AO26: 0809 | AP26: 09-LA CONVENCION | AS26: 08 | AT26: 02 | AU26: 02 | AV26: 0202 | AW26: ACOPIA | AX26: 0 | AY26: 0802 | AZ26: 080202 | BA26: 0202-ACOPIA
A27: 6 | B27: Junio | F27: 11 | G27: 09 | H27: QUILLABAMBA | I27: 11 | J27: 09 | K27: 09-QUILLABAMBA | M27: 01 | N27: 11 | O27: 09 | P27: NO PERTENECE A NINGUNA MICRORED | Q27: 0901 | R27: 01-NO PERTENECE A NINGUNA MICRORED | T27: 000002431 | U27: IVOCHOTE | V27: 000002431 | W27: 3 | X27: 08 | Y27: 09 | Z27: 02 | AA27: 11 | AB27: 03 | AC27: 04 | AD27: I-2 | AE27: 0304 | AF27: 6 | AG27: 308 | AH27: 0304-IVOCHOTE | AL27: 08 | AM27: 10 | AN27: PARURO | AO27: 0810 | AP27: 10-PARURO | AS27: 08 | AT27: 02 | AU27: 03 | AV27: 0203 | AW27: ACOS | AX27: 0 | AY27: 0802 | AZ27: 080203 | BA27: 0203-ACOS
A28: 7 | B28: Julio | F28: 11 | G28: 10 | H28: ESPINAR | I28: 11 | J28: 10 | K28: 10-ESPINAR | M28: 01 | N28: 11 | O28: 10 | P28: NO PERTENECE A NINGUNA MICRORED | Q28: 1001 | R28: 01-NO PERTENECE A NINGUNA MICRORED | T28: 000002432 | U28: KEPASHIATO | V28: 000002432 | W28: 2 | X28: 08 | Y28: 09 | Z28: 02 | AA28: 11 | AB28: 03 | AC28: 04 | AD28: I-3 | AE28: 0304 | AF28: 1 | AG28: 208 | AH28: 0304-KEPASHIATO | AL28: 08 | AM28: 11 | AN28: PAUCARTAMBO | AO28: 0811 | AP28: 11-PAUCARTAMBO | AS28: 08 | AT28: 02 | AU28: 04 | AV28: 0204 | AW28: MOSOC LLACTA | AX28: 0 | AY28: 0802 | AZ28: 080204 | BA28: 0204-MOSOC LLACTA
A29: 8 | B29: Agosto | C29: 1 | D29: 2 | M29: 05 | N29: 11 | O29: 03 | P29: KAMISEA | Q29: 0305 | R29: 05-KAMISEA | T29: 000002419 | U29: SUYKUTAMBO | V29: 000002419 | W29: 3 | X29: 08 | Y29: 08 | Z29: 07 | AA29: 11 | AB29: 04 | AC29: 06 | AD29: I-2 | AE29: 0406 | AF29: 7 | AG29: 208 | AH29: 0406-SUYKUTAMBO | AL29: 08 | AM29: 12 | AN29: QUISPICANCHI | AO29: 0812 | AP29: 12-QUISPICANCHI | AS29: 08 | AT29: 02 | AU29: 05 | AV29: 0205 | AW29: POMACANCHI | AX29: 0 | AY29: 0802 | AZ29: 080205 | BA29: 0205-POMACANCHI
A30: 9 | B30: Setiembre | M30: 01 | N30: 11 | O30: 05 | P30: KIMBIRI | Q30: 0501 | R30: 01-KIMBIRI | T30: 000002434 | U30: MATERIATO | V30: 000002434 | W30: 3 | X30: 08 | Y30: 09 | Z30: 02 | AA30: 11 | AB30: 03 | AC30: 04 | AD30: I-2 | AE30: 0304 | AF30: 1 | AG30: 308 | AH30: 0304-MATERIATO | AL30: 08 | AM30: 13 | AN30: URUBAMBA | AO30: 0813 | AP30: 13-URUBAMBA | AS30: 08 | AT30: 02 | AU30: 06 | AV30: 0206 | AW30: RONDOCAN | AX30: 0 | AY30: 0802 | AZ30: 080206 | BA30: 0206-RONDOCAN
A31: 10 | B31: Octubre | C31: 01-CUSCO SUR | M31: 04 | N31: 11 | O31: 03 | P31: KITENI | Q31: 0304 | R31: 04-KITENI | T31: 000002436 | U31: NUEVA LUZ | V31: 000002436 | W31: 3 | X31: 08 | Y31: 09 | Z31: 14 | AA31: 11 | AB31: 03 | AC31: 05 | AD31: I-1 | AE31: 0305 | AG31: 208 | AH31: 0305-NUEVA LUZ | AS31: 08 | AT31: 02 | AU31: 07 | AV31: 0207 | AW31: SANGARARA | AX31: 0 | AY31: 0802 | AZ31: 080207 | BA31: 0207-SANGARARA
A32: 11 | B32: Noviembre | C32: 06-(ALL) | M32: 04 | N32: 11 | O32: 02 | P32: LIMATAMBO | Q32: 0204 | R32: 04-LIMATAMBO | T32: 000002439 | U32: PALMA REAL | V32: 000002439 | W32: 2 | X32: 08 | Y32: 09 | Z32: 02 | AA32: 11 | AB32: 03 | AC32: 01 | AD32: I-4 | AE32: 0301 | AF32: 8 | AG32: 208 | AH32: 0301-PALMA REAL | AS32: 08 | AT32: 03 | AU32: 01 | AV32: 0301 | AW32: ANTA | AX32: 0 | AY32: 0803 | AZ32: 080301 | BA32: 0301-ANTA
A33: 12 | B33: Diciembre | M33: 01 | N33: 11 | O33: 08 | P33: LIVITACA | Q33: 0801 | R33: 01-LIVITACA | T33: 000002440 | U33: PANGOA | V33: 000002440 | W33: 3 | X33: 08 | Y33: 09 | Z33: 02 | AA33: 11 | AB33: 03 | AC33: 04 | AD33: I-2 | AE33: 0304 | AF33: 2 | AG33: 108 | AH33: 0304-PANGOA | AS33: 08 | AT33: 03 | AU33: 02 | AV33: 0302 | AW33: ANCAHUASI | AX33: 0 | AY33: 0803 | AZ33: 080302 | BA33: 0302-ANCAHUASI
A34: 13 | B34: 1er. Trimestre | M34: 02 | N34: 11 | O34: 03 | P34: MARANURA | Q34: 0302 | R34: 02-MARANURA | T34: 000002441 | U34: PUERTO HUALLANA | V34: 000002441 | W34: 3 | X34: 08 | Y34: 09 | Z34: 14 | AA34: 11 | AB34: 03 | AC34: 05 | AD34: I-1 | AE34: 0305 | AF34: 3 | AG34: 208 | AH34: 0305-PUERTO HUALLANA | AS34: 08 | AT34: 03 | AU34: 03 | AV34: 0303 | AW34: CACHIMAYO | AX34: 0 | AY34: 0803 | AZ34: 080303 | BA34: 0303-CACHIMAYO
A35: 14 | B35: 2do. Trimestre | M35: 15 | N35: 11 | O35: 01 | P35: OCONGATE | Q35: 0115 | R35: 15-OCONGATE | T35: 000002442 | U35: PUERTO RICO | V35: 000002442 | W35: 3 | X35: 08 | Y35: 09 | Z35: 14 | AA35: 11 | AB35: 03 | AC35: 05 | AD35: I-1 | AE35: 0305 | AG35: 208 | AH35: 0305-PUERTO RICO | AS35: 08 | AT35: 03 | AU35: 04 | AV35: 0304 | AW35: CHINCHAYPUJIO | AX35: 0 | AY35: 0803 | AZ35: 080304 | BA35: 0304-CHINCHAYPUJIO
A36: 15 | B36: 3er. Trimestre | M36: 05 | N36: 11 | O36: 04 | P36: PAMPAPHALLA | Q36: 0405 | R36: 05-PAMPAPHALLA | T36: 000002443 | U36: SANIRIATO | V36: 000002443 | W36: 3 | X36: 08 | Y36: 09 | Z36: 02 | AA36: 11 | AB36: 03 | AC36: 04 | AD36: I-1 | AE36: 0304 | AF36: 9 | AG36: 208 | AH36: 0304-SANIRIATO | AS36: 08 | AT36: 03 | AU36: 05 | AV36: 0305 | AW36: HUAROCONDO | AX36: 0 | AY36: 0803 | AZ36: 080305 | BA36: 0305-HUAROCONDO
A37: 16 | B37: 4to. Trimestre | M37: 03 | N37: 11 | O37: 01 | P37: PARURO | Q37: 0103 | R37: 03-PARURO | T37: 000002433 | U37: KORIBENI | V37: 000002433 | W37: 3 | X37: 08 | Y37: 09 | Z37: 02 | AA37: 11 | AB37: 03 | AC37: 01 | AD37: I-2 | AE37: 0301 | AF37: 1 | AG37: 208 | AH37: 0301-KORIBENI | AS37: 08 | AT37: 03 | AU37: 06 | AV37: 0306 | AW37: LIMATAMBO | AX37: 0 | AY37: 0803 | AZ37: 080306 | BA37: 0306-LIMATAMBO
A38: 17 | B38: 1er. Semestre | M38: 06 | N38: 11 | O38: 01 | P38: PAUCARTAMBO | Q38: 0106 | R38: 06-PAUCARTAMBO | T38: 000002410 | U38: YAURI | V38: 000002410 | W38: 2 | X38: 08 | Y38: 08 | Z38: 01 | AA38: 11 | AB38: 04 | AC38: 06 | AD38: I-4 | AE38: 0406 | AF38: 2 | AG38: 208 | AH38: 0406-YAURI | AS38: 08 | AT38: 03 | AU38: 07 | AV38: 0307 | AW38: MOLLEPATA | AX38: 0 | AY38: 0803 | AZ38: 080307 | BA38: 0307-MOLLEPATA
A39: 18 | B39: 2do. Semestre | M39: 02 | N39: 11 | O39: 05 | P39: PICHARI | Q39: 0502 | R39: 02-PICHARI | T39: 000002397 | U39: TINTA | V39: 000002397 | W39: 2 | X39: 08 | Y39: 06 | Z39: 08 | AA39: 11 | AB39: 04 | AC39: 03 | AD39: I-3 | AE39: 0403 | AF39: 3 | AG39: 308 | AH39: 0403-TINTA | AS39: 08 | AT39: 03 | AU39: 08 | AV39: 0308 | AW39: PUCYURA | AX39: 0 | AY39: 0803 | AZ39: 080308 | BA39: 0308-PUCYURA
A40: 19 | B40: Anual | M40: 05 | N40: 11 | O40: 02 | P40: PISAC | Q40: 0205 | R40: 05-PISAC | T40: 000002398 | U40: SANTO TOMAS | V40: 000002398 | W40: 1 | X40: 08 | Y40: 07 | Z40: 01 | AA40: 11 | AB40: 08 | AC40: 09 | AD40: II-1 | AE40: 0809 | AF40: 4 | AG40: 308 | AH40: 0809-SANTO TOMAS | AS40: 08 | AT40: 03 | AU40: 09 | AV40: 0309 | AW40: ZURITE | AX40: 0 | AY40: 0803 | AZ40: 080309 | BA40: 0309-ZURITE
M41: 06 | N41: 11 | O41: 03 | P41: PUCYURA | Q41: 0306 | R41: 06-PUCYURA | T41: 000002400 | U41: ALHUACCHULLO | V41: 000002400 | W41: 3 | X41: 08 | Y41: 07 | Z41: 01 | AA41: 11 | AB41: 08 | AC41: 09 | AD41: I-2 | AE41: 0809 | AF41: 4 | AG41: 308 | AH41: 0809-ALHUACCHULLO | AS41: 08 | AT41: 04 | AU41: 01 | AV41: 0401 | AW41: CALCA | AX41: 0 | AY41: 0804 | AZ41: 080401 | BA41: 0401-CALCA
M42: 03 | N42: 11 | O42: 03 | P42: QUELLOUNO | Q42: 0303 | R42: 03-QUELLOUNO | T42: 000002401 | U42: CCAPACMARCA | V42: 000002401 | W42: 2 | X42: 08 | Y42: 07 | Z42: 02 | AA42: 11 | AB42: 08 | AC42: 09 | AD42: I-3 | AE42: 0809 | AF42: 4 | AG42: 308 | AH42: 0809-CCAPACMARCA | AS42: 08 | AT42: 04 | AU42: 02 | AV42: 0402 | AW42: COYA | AX42: 0 | AY42: 0804 | AZ42: 080402 | BA42: 0402-COYA
M43: 01 | N43: 11 | O43: 03 | P43: SANTA ANA | Q43: 0301 | R43: 01-SANTA ANA | T43: 000002402 | U43: CHAMACA | V43: 000002402 | W43: 3 | X43: 08 | Y43: 07 | Z43: 03 | AA43: 11 | AB43: 08 | AC43: 01 | AD43: I-2 | AE43: 0801 | AF43: 6 | AG43: 208 | AH43: 0801-CHAMACA | AS43: 08 | AT43: 04 | AU43: 03 | AV43: 0403 | AW43: LAMAY | AX43: 0 | AY43: 0804 | AZ43: 080403 | BA43: 0403-LAMAY
M44: 09 | N44: 11 | O44: 08 | P44: SANTO TOMAS | Q44: 0809 | R44: 09-SANTO TOMAS | T44: 000002407 | U44: LLUSCO | V44: 000002407 | W44: 3 | X44: 08 | Y44: 07 | Z44: 06 | AA44: 11 | AB44: 08 | AC44: 09 | AD44: I-2 | AE44: 0809 | AF44: 2 | AG44: 208 | AH44: 0809-LLUSCO | AS44: 08 | AT44: 04 | AU44: 04 | AV44: 0404 | AW44: LARES | AX44: 0 | AY44: 0804 | AZ44: 080404 | BA44: 0404-LARES
M45: 09 | N45: 11 | O45: 02 | P45: SIETE CUARTONES | Q45: 0209 | R45: 09-SIETE CUARTONES | T45: 000002417 | U45: PICHIGUA ESPINAR | V45: 000002417 | W45: 3 | X45: 08 | Y45: 08 | Z45: 06 | AA45: 11 | AB45: 04 | AC45: 06 | AD45: I-2 | AE45: 0406 | AF45: 4 | AG45: 208 | AH45: 0406-PICHIGUA ESPINAR | AS45: 08 | AT45: 04 | AU45: 05 | AV45: 0405 | AW45: PISAC | AX45: 0 | AY45: 0804 | AZ45: 080405 | BA45: 0405-PISAC
M46: 04 | N46: 11 | O46: 04 | P46: TECHO OBRERO | Q46: 0404 | R46: 04-TECHO OBRERO | T46: 000002409 | U46: VELILLE | V46: 000002409 | W46: 2 | X46: 08 | Y46: 07 | Z46: 08 | AA46: 11 | AB46: 08 | AC46: 09 | AD46: I-3 | AE46: 0809 | AF46: 5 | AG46: 308 | AH46: 0809-VELILLE | AS46: 08 | AT46: 04 | AU46: 06 | AV46: 0406 | AW46: SAN SALVADOR | AX46: 0 | AY46: 0804 | AZ46: 080406 | BA46: 0406-SAN SALVADOR
M47: 12 | N47: 11 | O47: 01 | P47: URCOS | Q47: 0112 | R47: 12-URCOS | T47: 000002418 | U47: SAN MIGUEL | V47: 000002418 | W47: 3 | X47: 08 | Y47: 08 | Z47: 06 | AA47: 11 | AB47: 04 | AC47: 06 | AD47: I-1 | AE47: 0406 | AF47: 6 | AG47: 308 | AH47: 0406-SAN MIGUEL | AS47: 08 | AT47: 04 | AU47: 07 | AV47: 0407 | AW47: TARAY | AX47: 0 | AY47: 0804 | AZ47: 080407 | BA47: 0407-TARAY
M48: 07 | N48: 11 | O48: 02 | P48: URUBAMBA | Q48: 0207 | R48: 07-URUBAMBA | T48: 000002411 | U48: CONDOROMA | V48: 000002411 | W48: 3 | X48: 08 | Y48: 08 | Z48: 02 | AA48: 11 | AB48: 04 | AC48: 06 | AD48: I-1 | AE48: 0406 | AF48: 6 | AG48: 308 | AH48: 0406-CONDOROMA | AS48: 08 | AT48: 04 | AU48: 08 | AV48: 0408 | AW48: YANATILE | AX48: 0 | AY48: 0804 | AZ48: 080408 | BA48: 0408-YANATILE
M49: 02 | N49: 11 | O49: 02 | P49: WANCHAQ | Q49: 0202 | R49: 02-WANCHAQ | T49: 000002413 | U49: URINSAYA | V49: 000002413 | W49: 3 | X49: 08 | Y49: 08 | Z49: 03 | AA49: 11 | AB49: 04 | AC49: 06 | AD49: I-2 | AE49: 0406 | AF49: 1 | AG49: 208 | AH49: 0406-URINSAYA | AS49: 08 | AT49: 05 | AU49: 01 | AV49: 0501 | AW49: YANAOCA | AX49: 0 | AY49: 0805 | AZ49: 080501 | BA49: 0501-YANAOCA
M50: 01 | N50: 11 | O50: 04 | P50: YANAOCA | Q50: 0401 | R50: 01-YANAOCA | T50: 000002414 | U50: HUAYHUAHUASI | V50: 000002414 | W50: 3 | X50: 08 | Y50: 08 | Z50: 03 | AA50: 11 | AB50: 04 | AC50: 06 | AD50: I-2 | AE50: 0406 | AF50: 3 | AG50: 308 | AH50: 0406-HUAYHUAHUASI | AS50: 08 | AT50: 05 | AU50: 02 | AV50: 0502 | AW50: CHECCA | AX50: 0 | AY50: 0805 | AZ50: 080502 | BA50: 0502-CHECCA
M51: 08 | N51: 11 | O51: 02 | P51: YANATILE | Q51: 0208 | R51: 08-YANATILE | T51: 000002415 | U51: OCCORURO | V51: 000002415 | W51: 3 | X51: 08 | Y51: 08 | Z51: 04 | AA51: 11 | AB51: 04 | AC51: 06 | AD51: I-2 | AE51: 0406 | AF51: 5 | AG51: 208 | AH51: 0406-OCCORURO | AS51: 08 | AT51: 05 | AU51: 03 | AV51: 0503 | AW51: KUNTURKANKI | AX51: 0 | AY51: 0805 | AZ51: 080503 | BA51: 0503-KUNTURKANKI
M52: 06 | N52: 11 | O52: 04 | P52: YAURI | Q52: 0406 | R52: 06-YAURI | T52: 000002455 | U52: HUAYOPATA | V52: 000002455 | W52: 3 | X52: 08 | Y52: 09 | Z52: 03 | AA52: 11 | AB52: 03 | AC52: 02 | AD52: I-1 | AE52: 0302 | AG52: 308 | AH52: 0302-HUAYOPATA | AS52: 08 | AT52: 05 | AU52: 04 | AV52: 0504 | AW52: LANGUI | AX52: 0 | AY52: 0805 | AZ52: 080504 | BA52: 0504-LANGUI
M53: 01 | N53: 11 | O53: 01 | P53: (ALL) | Q53: 0101 | R53: 01-(ALL) | T53: 000002416 | U53: PALLPATA | V53: 000002416 | W53: 3 | X53: 08 | Y53: 08 | Z53: 05 | AA53: 11 | AB53: 04 | AC53: 06 | AD53: I-2 | AE53: 0406 | AF53: 4 | AG53: 308 | AH53: 0406-PALLPATA | AS53: 08 | AT53: 05 | AU53: 05 | AV53: 0505 | AW53: LAYO | AX53: 0 | AY53: 0805 | AZ53: 080505 | BA53: 0505-LAYO
M54: 02 | N54: 11 | O54: 02 | P54: (ALL) | Q54: 0202 | R54: 02-(ALL) | T54: 000002446 | U54: CHACCO | V54: 000002446 | W54: 3 | X54: 08 | Y54: 09 | Z54: 02 | AA54: 11 | AB54: 03 | AC54: 01 | AD54: I-1 | AE54: 0301 | AF54: 5 | AG54: 208 | AH54: 0301-CHACCO | AS54: 08 | AT54: 05 | AU54: 06 | AV54: 0506 | AW54: PAMPAMARCA | AX54: 0 | AY54: 0805 | AZ54: 080506 | BA54: 0506-PAMPAMARCA
M55: 03 | N55: 11 | O55: 03 | P55: (ALL) | Q55: 0303 | R55: 03-(ALL) | T55: 000002408 | U55: QUIÑOTA | V55: 000002408 | W55: 3 | X55: 08 | Y55: 07 | Z55: 07 | AA55: 11 | AB55: 08 | AC55: 09 | AD55: I-2 | AE55: 0809 | AF55: 3 | AG55: 308 | AH55: 0809-QUIÑOTA | AS55: 08 | AT55: 05 | AU55: 07 | AV55: 0507 | AW55: QUEHUE | AX55: 0 | AY55: 0805 | AZ55: 080507 | BA55: 0507-QUEHUE
M56: 04 | N56: 11 | O56: 04 | P56: (ALL) | Q56: 0404 | R56: 04-(ALL) | T56: 000002502 | U56: CCOYABAMBA | V56: 000002502 | W56: 3 | X56: 08 | Y56: 10 | Z56: 03 | AA56: 11 | AB56: 01 | AC56: 03 | AD56: I-2 | AE56: 0103 | AF56: 3 | AG56: 308 | AH56: 0103-CCOYABAMBA | AS56: 08 | AT56: 05 | AU56: 08 | AV56: 0508 | AW56: TUPAC AMARU | AX56: 0 | AY56: 0805 | AZ56: 080508 | BA56: 0508-TUPAC AMARU
M57: 05 | N57: 11 | O57: 05 | P57: (ALL) | Q57: 0505 | R57: 05-(ALL) | T57: 000002482 | U57: INCAHUASI | V57: 000002482 | W57: 2 | X57: 08 | Y57: 09 | Z57: 11 | AA57: 11 | AB57: 03 | AC57: 06 | AD57: I-3 | AE57: 0306 | AG57: 308 | AH57: 0306-INCAHUASI | AS57: 08 | AT57: 06 | AU57: 01 | AV57: 0601 | AW57: SICUANI | AX57: 0 | AY57: 0806 | AZ57: 080601 | BA57: 0601-SICUANI
M58: 06 | N58: 11 | O58: 06 | P58: (ALL) | Q58: 0606 | R58: 06-(ALL) | T58: 000002484 | U58: OYARA | V58: 000002484 | W58: 3 | X58: 08 | Y58: 09 | Z58: 09 | AA58: 11 | AB58: 03 | AC58: 06 | AD58: I-1 | AE58: 0306 | AG58: 208 | AH58: 0306-OYARA | AS58: 08 | AT58: 06 | AU58: 02 | AV58: 0602 | AW58: CHECACUPE | AX58: 0 | AY58: 0806 | AZ58: 080602 | BA58: 0602-CHECACUPE
M59: 07 | N59: 11 | O59: 07 | P59: (ALL) | Q59: 0707 | R59: 07-(ALL) | T59: 000002490 | U59: ARMA | V59: 000002490 | W59: 3 | X59: 08 | Y59: 09 | Z59: 09 | AA59: 11 | AB59: 03 | AC59: 06 | AD59: I-1 | AE59: 0306 | AG59: 308 | AH59: 0306-ARMA | AS59: 08 | AT59: 06 | AU59: 03 | AV59: 0603 | AW59: COMBAPATA | AX59: 0 | AY59: 0806 | AZ59: 080603 | BA59: 0603-COMBAPATA
M60: 08 | N60: 11 | O60: 08 | P60: (ALL) | Q60: 0808 | R60: 08-(ALL) | T60: 000002492 | U60: PALTAYBAMBA | V60: 000002492 | W60: 3 | X60: 08 | Y60: 09 | Z60: 09 | AA60: 11 | AB60: 03 | AC60: 06 | AD60: I-1 | AE60: 0306 | AG60: 208 | AH60: 0306-PALTAYBAMBA | AS60: 08 | AT60: 06 | AU60: 04 | AV60: 0604 | AW60: MARANGANI | AX60: 0 | AY60: 0806 | AZ60: 080604 | BA60: 0604-MARANGANI
M61: 09 | N61: 11 | O61: 09 | P61: (ALL) | Q61: 0909 | R61: 09-(ALL) | T61: 000002496 | U61: OMAYA | V61: 000002496 | W61: 3 | X61: 08 | Y61: 09 | Z61: 10 | AA61: 11 | AB61: 05 | AC61: 02 | AD61: I-2 | AE61: 0502 | AG61: 308 | AH61: 0502-OMAYA | AS61: 08 | AT61: 06 | AU61: 05 | AV61: 0605 | AW61: PITUMARCA | AX61: 0 | AY61: 0806 | AZ61: 080605 | BA61: 0605-PITUMARCA
M62: 10 | N62: 11 | O62: 10 | P62: (ALL) | Q62: 1010 | R62: 10-(ALL) | T62: 000002498 | U62: PUERTO MAYO | V62: 000002498 | W62: 3 | X62: 08 | Y62: 09 | Z62: 10 | AA62: 11 | AB62: 05 | AC62: 02 | AD62: I-2 | AE62: 0502 | AG62: 308 | AH62: 0502-PUERTO MAYO | AS62: 08 | AT62: 06 | AU62: 06 | AV62: 0606 | AW62: SAN PABLO | AX62: 0 | AY62: 0806 | AZ62: 080606 | BA62: 0606-SAN PABLO
T63: 000002453 | U63: HUYRO | V63: 000002453 | W63: 2 | X63: 08 | Y63: 09 | Z63: 03 | AA63: 11 | AB63: 03 | AC63: 02 | AD63: I-3 | AE63: 0302 | AG63: 308 | AH63: 0302-HUYRO | AS63: 08 | AT63: 06 | AU63: 07 | AV63: 0607 | AW63: SAN PEDRO | AX63: 0 | AY63: 0806 | AZ63: 080607 | BA63: 0607-SAN PEDRO
T64: 000002501 | U64: CCAPI | V64: 000002501 | W64: 3 | X64: 08 | Y64: 10 | Z64: 03 | AA64: 11 | AB64: 01 | AC64: 03 | AD64: I-2 | AE64: 0103 | AG64: 208 | AH64: 0103-CCAPI | AS64: 08 | AT64: 06 | AU64: 08 | AV64: 0608 | AW64: TINTA | AX64: 0 | AY64: 0806 | AZ64: 080608 | BA64: 0608-TINTA
T65: 000002478 | U65: TOTORA | V65: 000002478 | W65: 3 | X65: 08 | Y65: 09 | Z65: 08 | AA65: 11 | AB65: 03 | AC65: 02 | AD65: I-1 | AE65: 0302 | AG65: 308 | AH65: 0302-TOTORA | AS65: 08 | AT65: 07 | AU65: 01 | AV65: 0701 | AW65: SANTO TOMAS | AX65: 0 | AY65: 0807 | AZ65: 080701 | BA65: 0701-SANTO TOMAS
T66: 000002503 | U66: COLCHA | V66: 000002503 | W66: 3 | X66: 08 | Y66: 10 | Z66: 04 | AA66: 11 | AB66: 01 | AC66: 03 | AD66: I-1 | AE66: 0103 | AG66: 208 | AH66: 0103-COLCHA | AS66: 08 | AT66: 07 | AU66: 02 | AV66: 0702 | AW66: CAPACMARCA | AX66: 0 | AY66: 0807 | AZ66: 080702 | BA66: 0702-CAPACMARCA
T67: 000002504 | U67: HUANOQUITE | V67: 000002504 | W67: 3 | X67: 08 | Y67: 10 | Z67: 05 | AA67: 11 | AB67: 01 | AC67: 03 | AD67: I-2 | AE67: 0103 | AG67: 208 | AH67: 0103-HUANOQUITE | AS67: 08 | AT67: 07 | AU67: 03 | AV67: 0703 | AW67: CHAMACA | AX67: 0 | AY67: 0807 | AZ67: 080703 | BA67: 0703-CHAMACA
T68: 000002505 | U68: OMACHA | V68: 000002505 | W68: 3 | X68: 08 | Y68: 10 | Z68: 06 | AA68: 11 | AB68: 01 | AC68: 03 | AD68: I-2 | AE68: 0103 | AG68: 308 | AH68: 0103-OMACHA | AS68: 08 | AT68: 07 | AU68: 04 | AV68: 0704 | AW68: COLQUEMARCA | AX68: 0 | AY68: 0807 | AZ68: 080704 | BA68: 0704-COLQUEMARCA
T69: 000002506 | U69: ANTAPALLPA | V69: 000002506 | W69: 3 | X69: 08 | Y69: 10 | Z69: 06 | AA69: 11 | AB69: 01 | AC69: 03 | AD69: I-2 | AE69: 0103 | AF69: 4 | AG69: 208 | AH69: 0103-ANTAPALLPA | AS69: 08 | AT69: 07 | AU69: 05 | AV69: 0705 | AW69: LIVITACA | AX69: 0 | AY69: 0807 | AZ69: 080705 | BA69: 0705-LIVITACA
T70: 000002507 | U70: PACCARECTAMBO | V70: 000002507 | W70: 3 | X70: 08 | Y70: 10 | Z70: 07 | AA70: 11 | AB70: 01 | AC70: 03 | AD70: I-2 | AE70: 0103 | AF70: 4 | AG70: 308 | AH70: 0103-PACCARECTAMBO | AS70: 08 | AT70: 07 | AU70: 06 | AV70: 0706 | AW70: LLUSCO | AX70: 0 | AY70: 0807 | AZ70: 080706 | BA70: 0706-LLUSCO
T71: 000002508 | U71: PILLPINTO | V71: 000002508 | W71: 3 | X71: 08 | Y71: 10 | Z71: 08 | AA71: 11 | AB71: 01 | AC71: 13 | AD71: I-1 | AE71: 0113 | AG71: 308 | AH71: 0113-PILLPINTO | AS71: 08 | AT71: 07 | AU71: 07 | AV71: 0707 | AW71: QUIÑOTA | AX71: 0 | AY71: 0807 | AZ71: 080707 | BA71: 0707-QUIÑOTA
T72: 000002509 | U72: YAURISQUE | V72: 000002509 | W72: 2 | X72: 08 | Y72: 10 | Z72: 09 | AA72: 11 | AB72: 01 | AC72: 03 | AD72: I-3 | AE72: 0103 | AF72: 6 | AG72: 208 | AH72: 0103-YAURISQUE | AS72: 08 | AT72: 07 | AU72: 08 | AV72: 0708 | AW72: VELILLE | AX72: 0 | AY72: 0807 | AZ72: 080708 | BA72: 0708-VELILLE
T73: 000002500 | U73: ACCHA | V73: 000002500 | W73: 2 | X73: 08 | Y73: 10 | Z73: 02 | AA73: 11 | AB73: 01 | AC73: 03 | AD73: I-3 | AE73: 0103 | AF73: 1 | AG73: 308 | AH73: 0103-ACCHA | AS73: 08 | AT73: 08 | AU73: 01 | AV73: 0801 | AW73: ESPINAR | AX73: 0 | AY73: 0808 | AZ73: 080801 | BA73: 0801-ESPINAR
T74: 000002465 | U74: QUELLOUNO | V74: 000002465 | W74: 2 | X74: 08 | Y74: 09 | Z74: 06 | AA74: 11 | AB74: 03 | AC74: 03 | AD74: I-4 | AE74: 0303 | AF74: 2 | AG74: 308 | AH74: 0303-QUELLOUNO | AS74: 08 | AT74: 08 | AU74: 02 | AV74: 0802 | AW74: CONDOROMA | AX74: 0 | AY74: 0808 | AZ74: 080802 | BA74: 0802-CONDOROMA
T75: 000002452 | U75: SHIVANKORENI | V75: 000002452 | W75: 3 | X75: 08 | Y75: 09 | Z75: 14 | AA75: 11 | AB75: 03 | AC75: 05 | AD75: I-2 | AE75: 0305 | AG75: 208 | AH75: 0305-SHIVANKORENI | AS75: 08 | AT75: 08 | AU75: 03 | AV75: 0803 | AW75: COPORAQUE | AX75: 0 | AY75: 0808 | AZ75: 080803 | BA75: 0803-COPORAQUE
T76: 000002396 | U76: SAN PEDRO CANCHIS | V76: 000002396 | W76: 3 | X76: 08 | Y76: 06 | Z76: 07 | AA76: 11 | AB76: 04 | AC76: 05 | AD76: I-2 | AE76: 0405 | AF76: 7 | AG76: 208 | AH76: 0405-SAN PEDRO CANCHIS | AS76: 08 | AT76: 08 | AU76: 04 | AV76: 0804 | AW76: OCORURO | AX76: 0 | AY76: 0808 | AZ76: 080804 | BA76: 0804-OCORURO
T77: 000002454 | U77: ALFAMAYO | V77: 000002454 | W77: 3 | X77: 08 | Y77: 09 | Z77: 03 | AA77: 11 | AB77: 03 | AC77: 02 | AD77: I-1 | AE77: 0302 | AF77: 7 | AG77: 308 | AH77: 0302-ALFAMAYO | AS77: 08 | AT77: 08 | AU77: 05 | AV77: 0805 | AW77: PALLPATA | AX77: 0 | AY77: 0808 | AZ77: 080805 | BA77: 0805-PALLPATA
T78: 000002391 | U78: OCCOBAMBA MARANGANI | V78: 000002391 | W78: 3 | X78: 08 | Y78: 06 | Z78: 04 | AA78: 11 | AB78: 04 | AC78: 04 | AD78: I-2 | AE78: 0404 | AF78: 8 | AG78: 308 | AH78: 0404-OCCOBAMBA MARANGANI | AS78: 08 | AT78: 08 | AU78: 06 | AV78: 0806 | AW78: PICHIGUA | AX78: 0 | AY78: 0808 | AZ78: 080806 | BA78: 0806-PICHIGUA
T79: 000002456 | U79: AMAYBAMBA | V79: 000002456 | W79: 3 | X79: 08 | Y79: 09 | Z79: 03 | AA79: 11 | AB79: 03 | AC79: 02 | AD79: I-2 | AE79: 0302 | AF79: 11 | AG79: 308 | AH79: 0302-AMAYBAMBA | AS79: 08 | AT79: 08 | AU79: 07 | AV79: 0807 | AW79: SUYCKUTAMBO | AX79: 0 | AY79: 0808 | AZ79: 080807 | BA79: 0807-SUYCKUTAMBO
T80: 000002458 | U80: MARANURA | V80: 000002458 | W80: 2 | X80: 08 | Y80: 09 | Z80: 04 | AA80: 11 | AB80: 03 | AC80: 02 | AD80: I-4 | AE80: 0302 | AF80: 12 | AG80: 208 | AH80: 0302-MARANURA | AS80: 08 | AT80: 08 | AU80: 08 | AV80: 0808 | AW80: ALTO PICHIGUA | AX80: 0 | AY80: 0808 | AZ80: 080808 | BA80: 0808-ALTO PICHIGUA
T81: 000002460 | U81: SANTA MARIA | V81: 000002460 | W81: 3 | X81: 08 | Y81: 09 | Z81: 04 | AA81: 11 | AB81: 03 | AC81: 02 | AD81: I-2 | AE81: 0302 | AF81: 12 | AG81: 308 | AH81: 0302-SANTA MARIA | AS81: 08 | AT81: 09 | AU81: 01 | AV81: =CONCATENATE(AT81,AU81) -> 0901 | AW81: SANTA ANA | AX81: 0 | AY81: 0809 | AZ81: 080901 | BA81: 0901-SANTA ANA
T82: 000002480 | U82: PUCYURA | V82: 000002480 | W82: 2 | X82: 08 | Y82: 09 | Z82: 09 | AA82: 11 | AB82: 03 | AC82: 06 | AD82: I-4 | AE82: =CONCATENATE(AB82,AC82) -> 0306 | AF82: 1 | AG82: 308 | AH82: 0306-PUCYURA | AS82: 08 | AT82: 09 | AU82: 02 | AV82: 0902 | AW82: ECHARATE | AX82: 0 | AY82: =CONCATENATE(AS82,AT82) -> 0809 | AZ82: =CONCATENATE(AS82,AT82,AU82) -> 080902 | BA82: =CONCATENATE(AT82,AU82,"-",AW82) -> 0902-ECHARATE
T83: 000002463 | U83: CHINGANILLA | V83: 000002463 | W83: 3 | X83: 08 | Y83: 09 | Z83: 05 | AA83: 11 | AB83: 03 | AC83: 03 | AD83: I-1 | AE83: 0303 | AF83: 2 | AG83: 208 | AH83: 0303-CHINGANILLA | AS83: 08 | AT83: 09 | AU83: 03 | AV83: 0903 | AW83: HUAYOPATA | AX83: 0 | AY83: 0809 | AZ83: 080903 | BA83: 0903-HUAYOPATA
T84: 000002303 | U84: SANTA ROSA | V84: 000002303 | W84: 2 | X84: 08 | Y84: 01 | Z84: 05 | AA84: 11 | AB84: 01 | AC84: 16 | AD84: I-3 | AE84: 0116 | AF84: 6 | AG84: 308 | AH84: 0116-SANTA ROSA | AS84: 08 | AT84: 09 | AU84: 04 | AV84: 0904 | AW84: MARANURA | AX84: 0 | AY84: 0809 | AZ84: 080904 | BA84: 0904-MARANURA
T85: 000002467 | U85: PUENTE SANTIAGO | V85: 000002467 | W85: 3 | X85: 08 | Y85: 09 | Z85: 06 | AA85: 11 | AB85: 02 | AC85: 08 | AD85: I-2 | AE85: 0208 | AF85: 6 | AG85: 308 | AH85: 0208-PUENTE SANTIAGO | AS85: 08 | AT85: 09 | AU85: 05 | AV85: 0905 | AW85: OCOBAMBA | AX85: 0 | AY85: 0809 | AZ85: 080905 | BA85: 0905-OCOBAMBA
T86: 000002468 | U86: SAN MARTIN | V86: 000002468 | W86: 3 | X86: 08 | Y86: 09 | Z86: 06 | AA86: 11 | AB86: 03 | AC86: 03 | AD86: I-2 | AE86: 0303 | AG86: 308 | AH86: =CONCATENATE(AB86,AC86,"-",U86) -> 0303-SAN MARTIN | AS86: 08 | AT86: 09 | AU86: 06 | AV86: 0906 | AW86: QUELLOUNO | AX86: 0 | AY86: 0809 | AZ86: 080906 | BA86: 0906-QUELLOUNO
T87: 000002469 | U87: SAN JUAN DE KIMBIRI-VRAEM | V87: 000002469 | W87: 1 | X87: 08 | Y87: 09 | Z87: 07 | AA87: 11 | AB87: 05 | AC87: 01 | AD87: II-E | AE87: 0501 | AG87: 208 | AH87: 0501-SAN JUAN DE KIMBIRI-VRAEM | AS87: 08 | AT87: 09 | AU87: 07 | AV87: 0907 | AW87: KIMBIRI | AX87: 0 | AY87: 0809 | AZ87: 080907 | BA87: 0907-KIMBIRI
T88: 000002470 | U88: CHIRUMPIARI | V88: 000002470 | W88: 3 | X88: 08 | Y88: 09 | Z88: 07 | AA88: 11 | AB88: 05 | AC88: 01 | AD88: I-2 | AE88: 0501 | AF88: 5 | AG88: 308 | AH88: 0501-CHIRUMPIARI | AS88: 08 | AT88: 09 | AU88: 08 | AV88: 0908 | AW88: SANTA TERESA | AX88: 0 | AY88: 0809 | AZ88: 080908 | BA88: 0908-SANTA TERESA
T89: 000002471 | U89: LOBO TAHUANTINSUYO | V89: 000002471 | W89: 2 | X89: 08 | Y89: 09 | Z89: 07 | AA89: 11 | AB89: 05 | AC89: 01 | AD89: I-3 | AE89: 0501 | AF89: 6 | AG89: 308 | AH89: 0501-LOBO TAHUANTINSUYO | AS89: 08 | AT89: 09 | AU89: 09 | AV89: 0909 | AW89: VILCABAMBA | AX89: 0 | AY89: 0809 | AZ89: 080909 | BA89: 0909-VILCABAMBA
T90: 000002472 | U90: MAPITUNARI | V90: 000002472 | W90: 3 | X90: 08 | Y90: 09 | Z90: 07 | AA90: 11 | AB90: 05 | AC90: 01 | AD90: I-2 | AE90: 0501 | AF90: 4 | AG90: 308 | AH90: 0501-MAPITUNARI | AS90: 08 | AT90: 09 | AU90: 10 | AV90: 0910 | AW90: PICHARI | AX90: 0 | AY90: 0809 | AZ90: 080910 | BA90: 0910-PICHARI
T91: 000002451 | U91: CHAHUARES | V91: 000002451 | W91: 3 | X91: 08 | Y91: 09 | Z91: 02 | AA91: 11 | AB91: 03 | AC91: 01 | AD91: I-1 | AE91: 0301 | AF91: 5 | AG91: 308 | AH91: 0301-CHAHUARES | AS91: 08 | AT91: 09 | AU91: 11 | AV91: 0911 | AW91: INKAWASI | AX91: 0 | AY91: 0809 | AZ91: 080911 | BA91: 0911-INKAWASI
T92: 000002462 | U92: OCCOBAMBA LACONVENCION | V92: 000002462 | W92: 2 | X92: 08 | Y92: 09 | Z92: 05 | AA92: 11 | AB92: 03 | AC92: 03 | AD92: I-3 | AE92: 0303 | AF92: 7 | AG92: 208 | AH92: 0303-OCCOBAMBA LACONVENCION | AS92: 08 | AT92: 09 | AU92: 12 | AV92: 0912 | AW92: VILLA VIRGEN | AX92: 0 | AY92: 0809 | AZ92: 080912 | BA92: 0912-VILLA VIRGEN
T93: 000002337 | U93: PAMPACONGA | V93: 000002337 | W93: 3 | X93: 08 | Y93: 03 | Z93: 06 | AA93: 11 | AB93: 02 | AC93: 04 | AD93: I-2 | AE93: 0204 | AF93: 1 | AG93: 308 | AH93: 0204-PAMPACONGA | AS93: 08 | AT93: 09 | AU93: 13 | AV93: 0913 | AW93: VILLA KINTIARINA | AX93: 0 | AY93: 0809 | AZ93: 080913 | BA93: 0913-VILLA KINTIARINA
T94: 000002327 | U94: CHACAN | V94: 000002327 | W94: 3 | X94: 08 | Y94: 03 | Z94: 01 | AA94: 11 | AB94: 02 | AC94: 03 | AD94: I-1 | AE94: 0203 | AF94: 1 | AG94: 308 | AH94: 0203-CHACAN | AS94: 08 | AT94: 09 | AU94: 14 | AV94: 0914 | AW94: MEGANTONI | AX94: 0 | AY94: 0809 | AZ94: 080914 | BA94: 0914-MEGANTONI
T95: 000002329 | U95: CONCHACALLA | V95: 000002329 | W95: 3 | X95: 08 | Y95: 03 | Z95: 01 | AA95: 11 | AB95: 02 | AC95: 03 | AD95: I-1 | AE95: 0203 | AF95: 1 | AG95: 308 | AH95: 0203-CONCHACALLA | AS95: 08 | AT95: 10 | AU95: 01 | AV95: 1001 | AW95: PARURO | AX95: 0 | AY95: 0810 | AZ95: 081001 | BA95: 1001-PARURO
T96: 000002330 | U96: ANCAHUASI | V96: 000002330 | W96: 2 | X96: 08 | Y96: 03 | Z96: 02 | AA96: 11 | AB96: 02 | AC96: 03 | AD96: I-3 | AE96: 0203 | AF96: 9 | AG96: 308 | AH96: 0203-ANCAHUASI | AS96: 08 | AT96: 10 | AU96: 02 | AV96: 1002 | AW96: ACCHA | AX96: 0 | AY96: 0810 | AZ96: 081002 | BA96: 1002-ACCHA
T97: 000002331 | U97: CACHIMAYO | V97: 000002331 | W97: 3 | X97: 08 | Y97: 03 | Z97: 03 | AA97: 11 | AB97: 02 | AC97: 03 | AD97: I-2 | AE97: 0203 | AF97: 10 | AG97: 308 | AH97: 0203-CACHIMAYO | AS97: 08 | AT97: 10 | AU97: 03 | AV97: 1003 | AW97: CCAPI | AX97: 0 | AY97: 0810 | AZ97: 081003 | BA97: 1003-CCAPI
T98: 000002332 | U98: CHINCHAYPUJIO | V98: 000002332 | W98: 2 | X98: 08 | Y98: 03 | Z98: 04 | AA98: 11 | AB98: 02 | AC98: 03 | AD98: I-3 | AE98: 0203 | AF98: 3 | AG98: 308 | AH98: 0203-CHINCHAYPUJIO | AS98: 08 | AT98: 10 | AU98: 04 | AV98: 1004 | AW98: COLCHA | AX98: 0 | AY98: 0810 | AZ98: 081004 | BA98: 1004-COLCHA
T99: 000002333 | U99: HUAROCONDO | V99: 000002333 | W99: 3 | X99: 08 | Y99: 03 | Z99: 05 | AA99: 11 | AB99: 02 | AC99: 03 | AD99: I-2 | AE99: 0203 | AF99: 4 | AG99: 208 | AH99: 0203-HUAROCONDO | AS99: 08 | AT99: 10 | AU99: 05 | AV99: 1005 | AW99: HUANOQUITE | AX99: 0 | AY99: 0810 | AZ99: 081005 | BA99: 1005-HUANOQUITE
T100: 000002349 | U100: CUYO CHICO | V100: 000002349 | W100: 3 | X100: 08 | Y100: 04 | Z100: 05 | AA100: 11 | AB100: 02 | AC100: 05 | AD100: I-1 | AE100: 0205 | AG100: 308 | AH100: 0205-CUYO CHICO | AS100: 08 | AT100: 10 | AU100: 06 | AV100: 1006 | AW100: OMACHA | AX100: 0 | AY100: 0810 | AZ100: 081006 | BA100: 1006-OMACHA
T101: 000002336 | U101: LIMATAMBO | V101: 000002336 | W101: 2 | X101: 08 | Y101: 03 | Z101: 06 | AA101: 11 | AB101: 02 | AC101: 04 | AD101: I-4 | AE101: 0204 | AG101: 308 | AH101: 0204-LIMATAMBO | AS101: 08 | AT101: 10 | AU101: 07 | AV101: 1007 | AW101: PACCARITAMBO | AX101: 0 | AY101: 0810 | AZ101: 081007 | BA101: 1007-PACCARITAMBO
T102: 000002324 | U102: PUESTO DE SALUD SANGARARA | V102: 000002324 | W102: 3 | X102: 08 | Y102: 02 | Z102: 07 | AA102: 11 | AB102: 01 | AC102: 13 | AD102: I-1 | AE102: 0113 | AF102: 1 | AG102: 308 | AH102: 0113-PUESTO DE SALUD SANGARARA | AS102: 08 | AT102: 10 | AU102: 08 | AV102: 1008 | AW102: PILLPINTO | AX102: 0 | AY102: 0810 | AZ102: 081008 | BA102: 1008-PILLPINTO
T103: 000002338 | U103: MOLLEPATA | V103: 000002338 | W103: 2 | X103: 08 | Y103: 03 | Z103: 07 | AA103: 11 | AB103: 02 | AC103: 04 | AD103: I-3 | AE103: 0204 | AF103: 3 | AG103: 308 | AH103: 0204-MOLLEPATA | AS103: 08 | AT103: 10 | AU103: 09 | AV103: 1009 | AW103: YAURISQUE | AX103: 0 | AY103: 0810 | AZ103: 081009 | BA103: 1009-YAURISQUE
T104: 000002339 | U104: PUCYURA ANTA | V104: 000002339 | W104: 2 | X104: 08 | Y104: 03 | Z104: 08 | AA104: 11 | AB104: 02 | AC104: 03 | AD104: I-3 | AE104: 0203 | AF104: 6 | AG104: 308 | AH104: 0203-PUCYURA ANTA | AS104: 08 | AT104: 11 | AU104: 01 | AV104: 1101 | AW104: PAUCARTAMBO | AX104: 0 | AY104: 0811 | AZ104: 081101 | BA104: 1101-PAUCARTAMBO
T105: 000002340 | U105: ZURITE | V105: 000002340 | W105: 3 | X105: 08 | Y105: 03 | Z105: 09 | AA105: 11 | AB105: 02 | AC105: 03 | AD105: I-2 | AE105: 0203 | AF105: 6 | AG105: 308 | AH105: 0203-ZURITE | AS105: 08 | AT105: 11 | AU105: 02 | AV105: 1102 | AW105: CAICAY | AX105: 0 | AY105: 0811 | AZ105: 081102 | BA105: 1102-CAICAY
T106: 000002341 | U106: CALCA | V106: 000002341 | W106: 2 | X106: 08 | Y106: 04 | Z106: 01 | AA106: 11 | AB106: 02 | AC106: 06 | AD106: I-4 | AE106: 0206 | AF106: 6 | AG106: 108 | AH106: 0206-CALCA | AS106: 08 | AT106: 11 | AU106: 03 | AV106: 1103 | AW106: CHALLABAMBA | AX106: 0 | AY106: 0811 | AZ106: 081103 | BA106: 1103-CHALLABAMBA
T107: 000002342 | U107: AMPARAES | V107: 000002342 | W107: 3 | X107: 08 | Y107: 04 | Z107: 04 | AA107: 11 | AB107: 02 | AC107: 06 | AD107: I-2 | AE107: 0206 | AF107: 1 | AG107: 308 | AH107: 0206-AMPARAES | AS107: 08 | AT107: 11 | AU107: 04 | AV107: 1104 | AW107: COLQUEPATA | AX107: 0 | AY107: 0811 | AZ107: 081104 | BA107: 1104-COLQUEPATA
T108: 000002344 | U108: LAMAY | V108: 000002344 | W108: 2 | X108: 08 | Y108: 04 | Z108: 03 | AA108: 11 | AB108: 02 | AC108: 05 | AD108: I-3 | AE108: 0205 | AF108: 5 | AG108: 208 | AH108: 0205-LAMAY | AS108: 08 | AT108: 11 | AU108: 05 | AV108: 1105 | AW108: HUANCARANI | AX108: 0 | AY108: 0811 | AZ108: 081105 | BA108: 1105-HUANCARANI
T109: 000002393 | U109: PHINAYA | V109: 000002393 | W109: 3 | X109: 08 | Y109: 06 | Z109: 05 | AA109: 11 | AB109: 04 | AC109: 05 | AD109: I-1 | AE109: 0405 | AF109: 6 | AG109: 308 | AH109: 0405-PHINAYA | AS109: 08 | AT109: 11 | AU109: 06 | AV109: 1106 | AW109: KOSÑIPATA | AX109: 0 | AY109: 0811 | AZ109: 081106 | BA109: 1106-KOSÑIPATA
T110: 000002334 | U110: HUAYLLACOCHA | V110: 000002334 | W110: 3 | X110: 08 | Y110: 03 | Z110: 05 | AA110: 11 | AB110: 02 | AC110: 03 | AD110: I-2 | AE110: 0203 | AF110: 7 | AG110: 308 | AH110: 0203-HUAYLLACOCHA | AS110: 08 | AT110: 12 | AU110: 01 | AV110: 1201 | AW110: URCOS | AX110: 0 | AY110: 0812 | AZ110: 081201 | BA110: 1201-URCOS
T111: 000002317 | U111: ACOMAYO | V111: 000002317 | W111: 2 | X111: 08 | Y111: 02 | Z111: 01 | AA111: 11 | AB111: 01 | AC111: 13 | AD111: I-4 | AE111: 0113 | AF111: 3 | AG111: 308 | AH111: 0113-ACOMAYO | AS111: 08 | AT111: 12 | AU111: 02 | AV111: 1202 | AW111: ANDAHUAYLILLAS | AX111: 0 | AY111: 0812 | AZ111: 081202 | BA111: 1202-ANDAHUAYLILLAS
T112: 000002305 | U112: ANTONIO LORENA DEL CUSCO | V112: 000002305 | W112: 1 | X112: 08 | Y112: 01 | Z112: 06 | AA112: 11 | AB112: 06 | AC112: 00 | AD112: III-1 | AE112: 0600 | AF112: 4 | AG112: 208 | AH112: 0600-ANTONIO LORENA DEL CUSCO | AS112: 08 | AT112: 12 | AU112: 03 | AV112: 1203 | AW112: CAMANTI | AX112: 0 | AY112: 0812 | AZ112: 081203 | BA112: 1203-CAMANTI
T113: 000002306 | U113: BELEMPAMPA | V113: 000002306 | W113: 2 | X113: 08 | Y113: 01 | Z113: 06 | AA113: 11 | AB113: 02 | AC113: 01 | AD113: I-4 | AE113: 0201 | AF113: 2 | AG113: 308 | AH113: 0201-BELEMPAMPA | AS113: 08 | AT113: 12 | AU113: 04 | AV113: 1204 | AW113: CCARHUAYO | AX113: 0 | AY113: 0812 | AZ113: 081204 | BA113: 1204-CCARHUAYO
T114: 000002307 | U114: MANCO CAPAC | V114: 000002307 | W114: 2 | X114: 08 | Y114: 01 | Z114: 06 | AA114: 11 | AB114: 02 | AC114: 02 | AD114: I-3 | AE114: 0202 | AF114: 3 | AG114: 208 | AH114: 0202-MANCO CAPAC | AS114: 08 | AT114: 12 | AU114: 05 | AV114: 1205 | AW114: CCATCA | AX114: 0 | AY114: 0812 | AZ114: 081205 | BA114: 1205-CCATCA
T115: 000002308 | U115: ZARZUELA ALTA | V115: 000002308 | W115: 2 | X115: 08 | Y115: 01 | Z115: 06 | AA115: 11 | AB115: 02 | AC115: 01 | AD115: I-3 | AE115: 0201 | AF115: 4 | AG115: 308 | AH115: 0201-ZARZUELA ALTA | AS115: 08 | AT115: 12 | AU115: 06 | AV115: 1206 | AW115: CUSIPATA | AX115: 0 | AY115: 0812 | AZ115: 081206 | BA115: 1206-CUSIPATA
T116: 000002309 | U116: DIGNIDAD NACIONAL | V116: 000002309 | W116: 2 | X116: 08 | Y116: 01 | Z116: 06 | AA116: 11 | AB116: 02 | AC116: 01 | AD116: I-3 | AE116: 0201 | AF116: 5 | AG116: 208 | AH116: 0201-DIGNIDAD NACIONAL | AS116: 08 | AT116: 12 | AU116: 07 | AV116: 1207 | AW116: HUARO | AX116: 0 | AY116: 0812 | AZ116: 081207 | BA116: 1207-HUARO
T117: 000002297 | U117: CCORCCA | V117: 000002297 | W117: 3 | X117: 08 | Y117: 01 | Z117: 02 | AA117: 11 | AB117: 02 | AC117: 01 | AD117: I-2 | AE117: 0201 | AF117: 5 | AG117: 308 | AH117: 0201-CCORCCA | AS117: 08 | AT117: 12 | AU117: 08 | AV117: 1208 | AW117: LUCRE | AX117: 0 | AY117: 0812 | AZ117: 081208 | BA117: 1208-LUCRE
T118: 000002299 | U118: POROY | V118: 000002299 | W118: 3 | X118: 08 | Y118: 01 | Z118: 03 | AA118: 11 | AB118: 02 | AC118: 09 | AD118: I-2 | AE118: 0209 | AF118: 6 | AG118: 308 | AH118: 0209-POROY | AS118: 08 | AT118: 12 | AU118: 09 | AV118: 1209 | AW118: MARCAPATA | AX118: 0 | AY118: 0812 | AZ118: 081209 | BA118: 1209-MARCAPATA
T119: 000002326 | U119: ANTA | V119: 000002326 | W119: 2 | X119: 08 | Y119: 03 | Z119: 01 | AA119: 11 | AB119: 02 | AC119: 03 | AD119: I-4 | AE119: 0203 | AF119: 6 | AG119: 308 | AH119: 0203-ANTA | AS119: 08 | AT119: 12 | AU119: 10 | AV119: 1210 | AW119: OCONGATE | AX119: 0 | AY119: 0812 | AZ119: 081210 | BA119: 1210-OCONGATE
T120: 000002314 | U120: SAYLLA | V120: 000002314 | W120: 3 | X120: 08 | Y120: 01 | Z120: 07 | AA120: 11 | AB120: 01 | AC120: 16 | AD120: I-2 | AE120: 0116 | AF120: 7 | AG120: 208 | AH120: 0116-SAYLLA | AS120: 08 | AT120: 12 | AU120: 11 | AV120: 1211 | AW120: OROPESA | AX120: 0 | AY120: 0812 | AZ120: 081211 | BA120: 1211-OROPESA
T121: 000002325 | U121: PUESTO DE SALUD MARCACONGA | V121: 000002325 | W121: 3 | X121: 08 | Y121: 02 | Z121: 07 | AA121: 11 | AB121: 01 | AC121: 13 | AD121: I-2 | AE121: 0113 | AF121: 8 | AG121: 308 | AH121: 0113-PUESTO DE SALUD MARCACONGA | AS121: 08 | AT121: 12 | AU121: 12 | AV121: 1212 | AW121: QUIQUIJANA | AX121: 0 | AY121: 0812 | AZ121: 081212 | BA121: 1212-QUIQUIJANA
T122: 000002318 | U122: ACOPIA | V122: 000002318 | W122: 3 | X122: 08 | Y122: 02 | Z122: 02 | AA122: 11 | AB122: 01 | AC122: 13 | AD122: I-1 | AE122: 0113 | AF122: 3 | AG122: 308 | AH122: 0113-ACOPIA | AS122: 08 | AT122: 13 | AU122: 01 | AV122: 1301 | AW122: URUBAMBA | AX122: 0 | AY122: 0813 | AZ122: 081301 | BA122: 1301-URUBAMBA
T123: 000002319 | U123: ACOS | V123: 000002319 | W123: 3 | X123: 08 | Y123: 02 | Z123: 03 | AA123: 11 | AB123: 01 | AC123: 13 | AD123: I-1 | AE123: 0113 | AF123: 4 | AG123: 308 | AH123: 0113-ACOS | AS123: 08 | AT123: 13 | AU123: 02 | AV123: 1302 | AW123: CHINCHERO | AX123: 0 | AY123: 0813 | AZ123: 081302 | BA123: 1302-CHINCHERO
T124: 000002320 | U124: MOSOCLLACTA | V124: 000002320 | W124: 3 | X124: 08 | Y124: 02 | Z124: 04 | AA124: 11 | AB124: 04 | AC124: 03 | AD124: I-1 | AE124: 0403 | AG124: 308 | AH124: 0403-MOSOCLLACTA | AS124: 08 | AT124: 13 | AU124: 03 | AV124: 1303 | AW124: HUAYLLABAMBA | AX124: 0 | AY124: 0813 | AZ124: 081303 | BA124: 1303-HUAYLLABAMBA
T125: 000002321 | U125: POMACANCHI | V125: 000002321 | W125: 2 | X125: 08 | Y125: 02 | Z125: 05 | AA125: 11 | AB125: 01 | AC125: 13 | AD125: I-4 | AE125: 0113 | AF125: 1 | AG125: 208 | AH125: 0113-POMACANCHI | AS125: 08 | AT125: 13 | AU125: 04 | AV125: 1304 | AW125: MACHUPICCHU | AX125: 0 | AY125: 0813 | AZ125: 081304 | BA125: 1304-MACHUPICCHU
T126: 000002322 | U126: SAN JUAN DE POMACANCHI | V126: 000002322 | W126: 3 | X126: 08 | Y126: 02 | Z126: 05 | AA126: 11 | AB126: 01 | AC126: 13 | AD126: I-1 | AE126: 0113 | AF126: 1 | AG126: 108 | AH126: 0113-SAN JUAN DE POMACANCHI | AS126: 08 | AT126: 13 | AU126: 05 | AV126: 1305 | AW126: MARAS | AX126: 0 | AY126: 0813 | AZ126: 081305 | BA126: 1305-MARAS
T127: 000002323 | U127: RONDOCAN | V127: 000002323 | W127: 2 | X127: 08 | Y127: 02 | Z127: 06 | AA127: 11 | AB127: 01 | AC127: 16 | AD127: I-3 | AE127: 0116 | AF127: 2 | AG127: 308 | AH127: 0116-RONDOCAN | AS127: 08 | AT127: 13 | AU127: 06 | AV127: 1306 | AW127: OLLANTAYTAMBO | AX127: 0 | AY127: 0813 | AZ127: 081306 | BA127: 1306-OLLANTAYTAMBO
T128: 000002350 | U128: CUYO GRANDE | V128: 000002350 | W128: 3 | X128: 08 | Y128: 04 | Z128: 05 | AA128: 11 | AB128: 02 | AC128: 05 | AD128: I-1 | AE128: 0205 | AF128: 5 | AG128: 308 | AH128: 0205-CUYO GRANDE | AS128: 08 | AT128: 13 | AU128: 07 | AV128: 1307 | AW128: YUCAY | AX128: 0 | AY128: 0813 | AZ128: 081307 | BA128: 1307-YUCAY
T129: 000002310 | U129: CHOCCO | V129: 000002310 | W129: 2 | X129: 08 | Y129: 01 | Z129: 06 | AA129: 11 | AB129: 02 | AC129: 02 | AD129: I-3 | AE129: 0202 | AF129: 5 | AG129: 208 | AH129: 0202-CHOCCO | AT129: 00 | AV129: 0000 | AW129: (ALL) | BA129: 0000-(ALL)
T130: 000002387 | U130: CHIARA | V130: 000002387 | W130: 3 | X130: 08 | Y130: 06 | Z130: 03 | AA130: 11 | AB130: 04 | AC130: 03 | AD130: I-2 | AE130: 0403 | AF130: 7 | AG130: 308 | AH130: 0403-CHIARA | AT130: '01 | AV130: 0000 | AW130: (ALL) | BA130: 0000-(ALL)
T131: 000002379 | U131: HERCCA | V131: 000002379 | W131: 3 | X131: 08 | Y131: 06 | Z131: 01 | AA131: 11 | AB131: 04 | AC131: 04 | AD131: I-1 | AE131: 0404 | AF131: 7 | AG131: 308 | AH131: 0404-HERCCA | AT131: '02 | AV131: 0000 | AW131: (ALL) | BA131: 0000-(ALL)
T132: 000002380 | U132: TECHO OBRERO | V132: 000002380 | W132: 2 | X132: 08 | Y132: 06 | Z132: 01 | AA132: 11 | AB132: 04 | AC132: 04 | AD132: I-4 | AE132: 0404 | AF132: 8 | AG132: 208 | AH132: 0404-TECHO OBRERO | AT132: '03 | AV132: 0000 | AW132: (ALL) | BA132: 0000-(ALL)
T133: 000002381 | U133: QUEHUAR | V133: 000002381 | W133: 3 | X133: 08 | Y133: 06 | Z133: 01 | AA133: 11 | AB133: 04 | AC133: 05 | AD133: I-2 | AE133: 0405 | AF133: 8 | AG133: 308 | AH133: 0405-QUEHUAR | AT133: '04 | AV133: 0000 | AW133: (ALL) | BA133: 0000-(ALL)
T134: 000002382 | U134: UZCUPATA | V134: 000002382 | W134: 3 | X134: 08 | Y134: 06 | Z134: 01 | AA134: 11 | AB134: 04 | AC134: 05 | AD134: I-1 | AE134: 0405 | AF134: 8 | AG134: 208 | AH134: 0405-UZCUPATA | AT134: '05 | AV134: 0000 | AW134: (ALL) | BA134: 0000-(ALL)
T135: 000002383 | U135: LA FLORIDA | V135: 000002383 | W135: 3 | X135: 08 | Y135: 06 | Z135: 01 | AA135: 11 | AB135: 04 | AC135: 05 | AD135: I-2 | AE135: 0405 | AF135: 8 | AG135: 308 | AH135: 0405-LA FLORIDA | AT135: '06 | AV135: 0000 | AW135: (ALL) | BA135: 0000-(ALL)
T136: 000002384 | U136: PAMPAPHALLA | V136: 000002384 | W136: 2 | X136: 08 | Y136: 06 | Z136: 01 | AA136: 11 | AB136: 04 | AC136: 05 | AD136: I-3 | AE136: 0405 | AF136: 8 | AG136: 308 | AH136: 0405-PAMPAPHALLA | AT136: '07 | AV136: 0000 | AW136: (ALL) | BA136: 0000-(ALL)
T137: 000002345 | U137: CCACHIN | V137: 000002345 | W137: 3 | X137: 08 | Y137: 04 | Z137: 04 | AA137: 11 | AB137: 02 | AC137: 06 | AD137: I-1 | AE137: 0206 | AG137: 208 | AH137: 0206-CCACHIN | AT137: '08 | AV137: 0000 | AW137: (ALL) | BA137: 0000-(ALL)
T138: 000002386 | U138: COMBAPATA CANCHIS | V138: 000002386 | W138: 2 | X138: 08 | Y138: 06 | Z138: 03 | AA138: 11 | AB138: 04 | AC138: 03 | AD138: I-4 | AE138: 0403 | AG138: 208 | AH138: 0403-COMBAPATA CANCHIS | AT138: 09 | AV138: 0000 | AW138: (ALL) | BA138: 0000-(ALL)
T139: 000002376 | U139: TUNGASUCA | V139: 000002376 | W139: 3 | X139: 08 | Y139: 05 | Z139: 08 | AA139: 11 | AB139: 04 | AC139: 01 | AD139: I-2 | AE139: 0401 | AG139: 308 | AH139: 0401-TUNGASUCA | AT139: '10 | AV139: 0000 | AW139: (ALL) | BA139: 0000-(ALL)
T140: 000002388 | U140: MARANGANI | V140: 000002388 | W140: 2 | X140: 08 | Y140: 06 | Z140: 04 | AA140: 11 | AB140: 04 | AC140: 04 | AD140: I-3 | AE140: 0404 | AG140: 308 | AH140: 0404-MARANGANI | AT140: '11 | AV140: 0000 | AW140: (ALL) | BA140: 0000-(ALL)
T141: 000002389 | U141: CHECTUYOC | V141: 000002389 | W141: 3 | X141: 08 | Y141: 06 | Z141: 04 | AA141: 11 | AB141: 04 | AC141: 04 | AD141: I-1 | AE141: 0404 | AF141: 4 | AG141: 308 | AH141: 0404-CHECTUYOC | AT141: '12 | AV141: 0000 | AW141: (ALL) | BA141: 0000-(ALL)
T142: 000002390 | U142: CCUYO | V142: 000002390 | W142: 3 | X142: 08 | Y142: 06 | Z142: 04 | AA142: 11 | AB142: 04 | AC142: 04 | AD142: I-1 | AE142: 0404 | AF142: 4 | AG142: 308 | AH142: 0404-CCUYO | AT142: '13 | AV142: 0000 | AW142: (ALL) | BA142: 0000-(ALL)
T143: 000002481 | U143: CCARCCO | V143: 000002481 | W143: 3 | X143: 08 | Y143: 09 | Z143: 11 | AA143: 11 | AB143: 03 | AC143: 06 | AD143: I-1 | AE143: 0306 | AF143: 5 | AG143: 308 | AH143: 0306-CCARCCO
T144: 000002392 | U144: PITUMARCA | V144: 000002392 | W144: 2 | X144: 08 | Y144: 06 | Z144: 05 | AA144: 11 | AB144: 04 | AC144: 03 | AD144: I-3 | AE144: 0403 | AF144: 5 | AG144: 308 | AH144: 0403-PITUMARCA
T145: 000002510 | U145: PAUCARTAMBO | V145: 000002510 | W145: 2 | X145: 08 | Y145: 11 | Z145: 01 | AA145: 11 | AB145: 01 | AC145: 06 | AD145: I-4 | AE145: 0106 | AF145: 6 | AG145: 308 | AH145: 0106-PAUCARTAMBO
T146: 000002394 | U146: SAN PABLO CANCHIS | V146: 000002394 | W146: 3 | X146: 08 | Y146: 06 | Z146: 06 | AA146: 11 | AB146: 04 | AC146: 05 | AD146: I-2 | AE146: =CONCATENATE(AB146,AC146) -> 0405 | AF146: 2 | AG146: 308 | AH146: 0405-SAN PABLO CANCHIS
T147: 000002385 | U147: CHECACUPE | V147: 000002385 | W147: 3 | X147: 08 | Y147: 06 | Z147: 02 | AA147: 11 | AB147: 04 | AC147: 03 | AD147: I-2 | AE147: 0403 | AF147: 1 | AG147: 308 | AH147: 0403-CHECACUPE
T148: 000002367 | U148: CHITIBAMBA | V148: 000002367 | W148: 3 | X148: 08 | Y148: 05 | Z148: 02 | AA148: 11 | AB148: 04 | AC148: 01 | AD148: I-1 | AE148: 0401 | AG148: 308 | AH148: 0401-CHITIBAMBA
T149: 000002351 | U149: QUELLO QUELLO | V149: 000002351 | W149: 3 | X149: 08 | Y149: 04 | Z149: 05 | AA149: 11 | AB149: 02 | AC149: 05 | AD149: I-1 | AE149: 0205 | AG149: 108 | AH149: 0205-QUELLO QUELLO
T150: 000002353 | U150: TARAY | V150: 000002353 | W150: 3 | X150: 08 | Y150: 04 | Z150: 07 | AA150: 11 | AB150: 02 | AC150: 05 | AD150: I-1 | AE150: 0205 | AF150: 7 | AG150: 308 | AH150: =CONCATENATE(AB150,AC150,"-",U150) -> 0205-TARAY
T151: 000002357 | U151: COLCCA YANATILE | V151: 000002357 | W151: 3 | X151: 08 | Y151: 04 | Z151: 08 | AA151: 11 | AB151: 02 | AC151: 08 | AD151: I-2 | AE151: 0208 | AG151: 308 | AH151: 0208-COLCCA YANATILE
T152: 000002358 | U152: MUYUPAY | V152: 000002358 | W152: 3 | X152: 08 | Y152: 04 | Z152: 08 | AA152: 11 | AB152: 02 | AC152: 08 | AD152: I-1 | AE152: 0208 | AG152: 308 | AH152: 0208-MUYUPAY
T153: 000002360 | U153: QUESQUENTO | V153: 000002360 | W153: 3 | X153: 08 | Y153: 04 | Z153: 08 | AA153: 11 | AB153: 02 | AC153: 08 | AD153: I-1 | AE153: 0208 | AG153: 308 | AH153: 0208-QUESQUENTO
T154: 000002361 | U154: SUYO | V154: 000002361 | W154: 3 | X154: 08 | Y154: 04 | Z154: 04 | AA154: 11 | AB154: 02 | AC154: 06 | AD154: I-2 | AE154: 0206 | AG154: 208 | AH154: 0206-SUYO
T155: 000002364 | U155: YANAOCA | V155: 000002364 | W155: 2 | X155: 08 | Y155: 05 | Z155: 01 | AA155: 11 | AB155: 04 | AC155: 01 | AD155: I-4 | AE155: 0401 | AG155: 208 | AH155: 0401-YANAOCA
T156: 000002378 | U156: SICUANI | V156: 000002378 | W156: 1 | X156: 08 | Y156: 06 | Z156: 01 | AA156: 11 | AB156: 07 | AC156: 01 | AD156: II-1 | AE156: 0701 | AG156: 308 | AH156: 0701-SICUANI
T157: 000002366 | U157: CHECCA | V157: 000002366 | W157: 3 | X157: 08 | Y157: 05 | Z157: 02 | AA157: 11 | AB157: 04 | AC157: 02 | AD157: I-2 | AE157: 0402 | AG157: 308 | AH157: 0402-CHECCA
T158: 000002377 | U158: TOCCOCCORI | V158: 000002377 | W158: 3 | X158: 08 | Y158: 05 | Z158: 08 | AA158: 11 | AB158: 04 | AC158: 01 | AD158: I-2 | AE158: 0401 | AG158: 308 | AH158: 0401-TOCCOCCORI
T159: 000002369 | U159: LANGUI | V159: 000002369 | W159: 3 | X159: 08 | Y159: 05 | Z159: 04 | AA159: 11 | AB159: 04 | AC159: 02 | AD159: I-2 | AE159: 0402 | AG159: 308 | AH159: 0402-LANGUI
T160: 000002370 | U160: CONDEVILUYO | V160: 000002370 | W160: 3 | X160: 08 | Y160: 05 | Z160: 04 | AA160: 11 | AB160: 04 | AC160: 02 | AD160: I-1 | AE160: 0402 | AG160: 208 | AH160: 0402-CONDEVILUYO
T161: 000002371 | U161: LAYO | V161: 000002371 | W161: 2 | X161: 08 | Y161: 05 | Z161: 05 | AA161: 11 | AB161: 04 | AC161: 02 | AD161: I-3 | AE161: 0402 | AF161: 8 | AG161: 308 | AH161: 0402-LAYO
T162: 000002372 | U162: PAMPAMARCA | V162: 000002372 | W162: 3 | X162: 08 | Y162: 05 | Z162: 06 | AA162: 11 | AB162: 04 | AC162: 01 | AD162: I-2 | AE162: 0401 | AF162: 4 | AG162: 308 | AH162: 0401-PAMPAMARCA
T163: 000002373 | U163: QUEHUE | V163: 000002373 | W163: 3 | X163: 08 | Y163: 05 | Z163: 07 | AA163: 11 | AB163: 04 | AC163: 01 | AD163: I-2 | AE163: 0401 | AF163: 8 | AG163: 308 | AH163: 0401-QUEHUE
T164: 000002374 | U164: HUINCHIRI | V164: 000002374 | W164: 3 | X164: 08 | Y164: 05 | Z164: 07 | AA164: 11 | AB164: 04 | AC164: 01 | AD164: I-2 | AE164: 0401 | AF164: 8 | AG164: 308 | AH164: 0401-HUINCHIRI
T165: 000002395 | U165: SANTA BARBARA | V165: 000002395 | W165: 3 | X165: 08 | Y165: 06 | Z165: 06 | AA165: 11 | AB165: 04 | AC165: 05 | AD165: I-2 | AE165: 0405 | AF165: 1 | AG165: 308 | AH165: 0405-SANTA BARBARA
T166: 000002365 | U166: PONGOÑA | V166: 000002365 | W166: 3 | X166: 08 | Y166: 05 | Z166: 01 | AA166: 11 | AB166: 04 | AC166: 01 | AD166: I-2 | AE166: 0401 | AF166: 1 | AG166: 308 | AH166: 0401-PONGOÑA
T167: 000008912 | U167: ALCCA VICTORIA | V167: 000008912 | W167: 3 | X167: 08 | Y167: 07 | Z167: 08 | AA167: 11 | AB167: 08 | AC167: 09 | AD167: I-1 | AE167: 0809 | AF167: 2 | AG167: 208 | AH167: 0809-ALCCA VICTORIA
T168: 000025739 | U168: PISQUICOCHA | V168: 000025739 | W168: 3 | X168: 08 | Y168: 07 | Z168: 05 | AA168: 11 | AB168: 08 | AC168: 01 | AD168: I-1 | AE168: 0801 | AF168: 7 | AG168: 308 | AH168: 0801-PISQUICOCHA
T169: 000002479 | U169: VILLA VIRGEN | V169: 000002479 | W169: 3 | X169: 08 | Y169: 09 | Z169: 12 | AA169: 11 | AB169: 05 | AC169: 01 | AD169: I-2 | AE169: 0501 | AF169: 7 | AG169: 308 | AH169: 0501-VILLA VIRGEN
T170: 000008285 | U170: ANGELES | V170: 000008285 | W170: 3 | X170: 08 | Y170: 09 | Z170: 07 | AA170: 11 | AB170: 05 | AC170: 01 | AD170: I-1 | AE170: 0501 | AG170: 308 | AH170: 0501-ANGELES
T171: 000008906 | U171: ESTRELLA | V171: 000008906 | W171: 3 | X171: 08 | Y171: 09 | Z171: 06 | AA171: 11 | AB171: 03 | AC171: 03 | AD171: I-1 | AE171: 0303 | AG171: 308 | AH171: 0303-ESTRELLA
T172: 000008907 | U172: MATORIATO | V172: 000008907 | W172: 3 | X172: 08 | Y172: 09 | Z172: 06 | AA172: 11 | AB172: 03 | AC172: 03 | AD172: I-1 | AE172: 0303 | AG172: 308 | AH172: 0303-MATORIATO
T173: 000008908 | U173: CHIRUMBIA | V173: 000008908 | W173: 3 | X173: 08 | Y173: 09 | Z173: 06 | AA173: 11 | AB173: 03 | AC173: 03 | AD173: I-1 | AE173: 0303 | AF173: 1 | AG173: 308 | AH173: 0303-CHIRUMBIA
T174: 000010062 | U174: QUILLABAMBA - ESSALUD | V174: 000010062 | W174: 2 | X174: 08 | Y174: 09 | Z174: 01 | AA174: 11 | AB174: 03 | AC174: 01 | AD174: I-4 | AE174: 0301 | AF174: 1 | AG174: 308 | AH174: 0301-QUILLABAMBA - ESSALUD
T175: 000008911 | U175: HUARA HUARA | V175: 000008911 | W175: 3 | X175: 08 | Y175: 12 | Z175: 05 | AA175: 11 | AB175: 01 | AC175: 12 | AD175: I-1 | AE175: 0112 | AF175: 1 | AG175: 308 | AH175: 0112-HUARA HUARA
T176: 000007143 | U176: OTOCANI | V176: 000007143 | W176: 3 | X176: 08 | Y176: 11 | Z176: 03 | AA176: 11 | AB176: 02 | AC176: 06 | AD176: I-1 | AE176: 0206 | AF176: 1 | AG176: 208 | AH176: 0206-OTOCANI
T177: 000008913 | U177: HUARACO | V177: 000008913 | W177: 3 | X177: 08 | Y177: 07 | Z177: 04 | AA177: 11 | AB177: 08 | AC177: 09 | AD177: I-1 | AE177: 0809 | AF177: 1 | AG177: 308 | AH177: 0809-HUARACO
T178: 000008914 | U178: HUAYLLANI | V178: 000008914 | W178: 3 | X178: 08 | Y178: 07 | Z178: 04 | AA178: 11 | AB178: 08 | AC178: 09 | AD178: I-1 | AE178: 0809 | AF178: 5 | AG178: 308 | AH178: 0809-HUAYLLANI
T179: 000008915 | U179: PFULLPURI CONDEPAMPA | V179: 000008915 | W179: 3 | X179: 08 | Y179: 07 | Z179: 01 | AA179: 11 | AB179: 08 | AC179: 09 | AD179: I-2 | AE179: 0809 | AF179: 2 | AG179: 308 | AH179: 0809-PFULLPURI CONDEPAMPA
T180: 000009963 | U180: CANCAHUANI | V180: 000009963 | W180: 3 | X180: 08 | Y180: 07 | Z180: 02 | AA180: 11 | AB180: 08 | AC180: 09 | AD180: I-1 | AE180: 0809 | AF180: 2 | AG180: 308 | AH180: 0809-CANCAHUANI
T181: 000010060 | U181: CAS URUBAMBA -ESSALUD | V181: 000010060 | X181: 08 | Y181: 13 | Z181: 01 | AA181: 11 | AB181: 02 | AC181: 07 | AD181: I-4 | AE181: 0207 | AF181: 2 | AG181: 208 | AH181: 0207-CAS URUBAMBA -ESSALUD
T182: 000006971 | U182: COMBAPATA YANATILE | V182: 000006971 | W182: 3 | X182: 08 | Y182: 04 | Z182: 08 | AA182: 11 | AB182: 02 | AC182: 08 | AD182: I-1 | AE182: 0208 | AF182: 2 | AG182: 308 | AH182: 0208-COMBAPATA YANATILE
T183: 000008909 | U183: CHAPO BOYERO | V183: 000008909 | W183: 3 | X183: 08 | Y183: 09 | Z183: 06 | AA183: 11 | AB183: 03 | AC183: 03 | AD183: I-2 | AE183: 0303 | AF183: 2 | AG183: 308 | AH183: 0303-CHAPO BOYERO
T184: 000016335 | U184: CCAPANA | V184: 000016335 | W184: 3 | X184: 08 | Y184: 12 | Z184: 05 | AA184: 11 | AB184: 01 | AC184: 15 | AD184: I-1 | AE184: 0115 | AF184: 2 | AG184: 308 | AH184: 0115-CCAPANA
T185: 000006972 | U185: PANTIPATA | V185: 000006972 | W185: 3 | X185: 08 | Y185: 03 | Z185: 04 | AA185: 11 | AB185: 02 | AC185: 03 | AD185: I-2 | AE185: 0203 | AF185: 2 | AG185: 308 | AH185: 0203-PANTIPATA
T186: 000006973 | U186: BELLAVISTA | V186: 000006973 | W186: 3 | X186: 08 | Y186: 04 | Z186: 08 | AA186: 11 | AB186: 02 | AC186: 08 | AD186: I-1 | AE186: 0208 | AF186: 2 | AG186: 208 | AH186: 0208-BELLAVISTA
T187: 000006975 | U187: SAYLLAFAYA | V187: 000006975 | W187: 3 | X187: 08 | Y187: 04 | Z187: 03 | AA187: 11 | AB187: 02 | AC187: 05 | AD187: I-2 | AE187: 0205 | AF187: 2 | AG187: 308 | AH187: 0205-SAYLLAFAYA
T188: 000006976 | U188: CHONTABAMBA | V188: 000006976 | W188: 3 | X188: 08 | Y188: 09 | Z188: 09 | AA188: 11 | AB188: 03 | AC188: 04 | AD188: I-1 | AE188: 0304 | AF188: 2 | AG188: 308 | AH188: 0304-CHONTABAMBA
T189: 000006977 | U189: TINKI | V189: 000006977 | W189: 3 | X189: 08 | Y189: 12 | Z189: 10 | AA189: 11 | AB189: 01 | AC189: 15 | AD189: I-2 | AE189: 0115 | AF189: 3 | AG189: 308 | AH189: 0115-TINKI
T190: 000006978 | U190: CCOCHIRIHUAY | V190: 000006978 | W190: 3 | X190: 08 | Y190: 10 | Z190: 04 | AA190: 11 | AB190: 01 | AC190: 03 | AD190: I-1 | AE190: 0103 | AF190: 3 | AG190: 208 | AH190: 0103-CCOCHIRIHUAY
T191: 000025740 | U191: TOTORA - REYNA DE LOS ANGELES | V191: 000025740 | W191: 3 | X191: 08 | Y191: 07 | Z191: 05 | AA191: 11 | AB191: 08 | AC191: 01 | AD191: I-1 | AE191: 0801 | AF191: 3 | AG191: 308 | AH191: 0801-TOTORA - REYNA DE LOS ANGELES
T192: 000006984 | U192: CCOLLANA | V192: 000006984 | W192: 3 | X192: 08 | Y192: 07 | Z192: 07 | AA192: 11 | AB192: 08 | AC192: 09 | AD192: I-1 | AE192: 0809 | AF192: 4 | AG192: 308 | AH192: 0809-CCOLLANA
T193: 000007145 | U193: HUAMA | V193: 000007145 | W193: 3 | X193: 08 | Y193: 04 | Z193: 03 | AA193: 11 | AB193: 02 | AC193: 05 | AD193: I-1 | AE193: 0205 | AF193: 4 | AG193: 208 | AH193: 0205-HUAMA
T194: 000007111 | U194: YAVINA | V194: 000007111 | W194: 3 | X194: 08 | Y194: 07 | Z194: 01 | AA194: 11 | AB194: 08 | AC194: 09 | AD194: I-1 | AE194: 0809 | AF194: 5 | AG194: 308 | AH194: 0809-YAVINA
T195: 000007112 | U195: YORENCCA | V195: 000007112 | W195: 3 | X195: 08 | Y195: 07 | Z195: 07 | AA195: 11 | AB195: 08 | AC195: 09 | AD195: I-1 | AE195: 0809 | AF195: 5 | AG195: 308 | AH195: 0809-YORENCCA
T196: 000007113 | U196: NATIVIDAD | V196: 000007113 | W196: 3 | X196: 08 | Y196: 09 | Z196: 10 | AA196: 11 | AB196: 05 | AC196: 02 | AD196: I-2 | AE196: 0502 | AF196: 5 | AG196: 308 | AH196: 0502-NATIVIDAD
T197: 000007114 | U197: QUISTO CENTRAL | V197: 000007114 | W197: 3 | X197: 08 | Y197: 09 | Z197: 10 | AA197: 11 | AB197: 05 | AC197: 02 | AD197: I-2 | AE197: 0502 | AF197: 6 | AG197: 108 | AH197: 0502-QUISTO CENTRAL
T198: 000007135 | U198: ESPINAR | V198: 000007135 | W198: 1 | X198: 08 | Y198: 08 | Z198: 01 | AA198: 11 | AB198: 10 | AC198: 01 | AD198: II-1 | AE198: 1001 | AF198: 6 | AG198: 308 | AH198: 1001-ESPINAR
T199: 000007142 | U199: CHANCAMAYO | V199: 000007142 | W199: 3 | X199: 08 | Y199: 04 | Z199: 08 | AA199: 11 | AB199: 02 | AC199: 08 | AD199: I-1 | AE199: 0208 | AF199: 6 | AG199: 208 | AH199: 0208-CHANCAMAYO
T200: 000010063 | U200: ESSALUD SICUANI | V200: 000010063 | X200: 08 | Y200: 06 | Z200: 01 | AA200: 11 | AB200: 04 | AC200: 04 | AD200: II-1 | AE200: 0404 | AF200: 9 | AG200: 308 | AH200: 0404-ESSALUD SICUANI
T201: 000006982 | U201: MELLOTOTORA | V201: 000006982 | W201: 3 | X201: 08 | Y201: 07 | Z201: 01 | AA201: 11 | AB201: 08 | AC201: 09 | AD201: I-1 | AE201: 0809 | AF201: 9 | AG201: 308 | AH201: 0809-MELLOTOTORA
... 217 more rows

Sheet INICIO
C13: 1 | E13: 3
B28: año | C28: 2024
B29: meses | C29: 1 | D29: 2 | E29: 3 | F29: 4 | G29: 5 | H29: 6 | I29: 7 | J29: 8 | K29: 9 | L29: 10 | M29: 11 | N29: 0
C30: =IF(C29>=1,C29," ") -> 1 | D30: =IF(D29>=1,D29," ") -> 2 | E30: =IF(E29>=1,E29," ") -> 3 | F30: =IF(F29>=1,F29," ") -> 4 | G30: =IF(G29>=1,G29," ") -> 5 | H30: =IF(H29>=1,H29," ") -> 6 | I30: 7 | J30: 8 | K30: 9 | L30: 10 | M30: 11
B31: redes | C31: 03-LA CONVENCION | E31: =TRIM(MID(C31,4,50)) -> LA CONVENCION
B32: micro red | C32: 06-(ALL) | E32: =TRIM(MID(C32,4,50)) -> (ALL)
B33: establecimiento | C33: 0000-(ALL) | E33: =TRIM(MID(C33,6,50)) -> (ALL)
B34: provincia | C34: 00-(ALL) | E34: =TRIM(MID(C34,4,25)) -> (ALL)
B35: distrito | C35: 0000-(ALL) | E35: =TRIM(MID(C35,6,25)) -> (ALL)
A41: ANO | B41: 2024
A42: DESC_RED | B42: LA CONVENCION
A43: DESC_MICRO | B43: (Todas)
A44: DESC_ESTAB | B44: (Todas)
A45: DESC_PROV | B45: (Todas)
A46: DESC_DIST | B46: (Todas)
B48: Valores
A49: Etiquetas de fila | B49: EDAS ACUOSAS <1a | C49: EDAS ACUOSAS 1a | D49: EDAS ACUOSAS 2a | E49: EDAS ACUOSAS 3a | F49: EDAS ACUOSAS 4a | G49: EDA ACUOSA 5-9a | H49: EDA ACUOSA 10-11a | I49: EDA ACUOSA ATC | J49: DISENTERICA <1a | K49: DISENTERICA 1a | L49: DISENTERICA 2a | M49: DISENTERICA 3a | N49: DISENTERICA 4a | O49: DISENTERICA 5-9a | P49: DISENTERICA 10-11a | Q49: DISENTERICA ATC | R49: PERSISTENTE <1a | S49: PERSISTENTE 1a | T49: PERSISTENTE 2a | U49: PERSISTENTE 3a | V49: PERSISTENTE 4a | W49: PERSISTENTE 5-9a | X49: PERSISTENTE 10-11a | Y49: PERSISTENTE ATC | Z49: SOSP COLERA <1a | AA49: SOSP COLERA 1a | AB49: SOSP COLERA 2a | AC49: SOSP COLERA 3a | AD49: SOSP COLERA 4a | AE49: SOSP COLERA 5-9a | AF49: SOSP COLERA 10-11a | AG49: SOSP COLERA ATC
A50: 1 | B50: 15 | C50: 23 | D50: 16 | E50: 10 | F50: 16 | G50: 51 | H50: 9 | I50: 311 | J50: 1 | K50: 0 | L50: 0 | M50: 0 | N50: 0 | O50: 0 | P50: 0 | Q50: 3 | R50: 21 | S50: 19 | T50: 12 | U50: 7 | V50: 9 | W50: 26 | X50: 6 | Y50: 100 | Z50: 0 | AA50: 0 | AB50: 0 | AC50: 0 | AD50: 0 | AE50: 0 | AF50: 0 | AG50: 0
A51: 2 | B51: 11 | C51: 17 | D51: 21 | E51: 15 | F51: 20 | G51: 50 | H51: 11 | I51: 306 | J51: 0 | K51: 0 | L51: 0 | M51: 0 | N51: 0 | O51: 0 | P51: 1 | Q51: 1 | R51: 20 | S51: 25 | T51: 15 | U51: 12 | V51: 8 | W51: 25 | X51: 5 | Y51: 110 | Z51: 0 | AA51: 0 | AB51: 0 | AC51: 0 | AD51: 0 | AE51: 0 | AF51: 0 | AG51: 0
A52: 3 | B52: 20 | C52: 34 | D52: 18 | E52: 11 | F52: 9 | G52: 41 | H52: 10 | I52: 314 | J52: 3 | K52: 0 | L52: 0 | M52: 0 | N52: 0 | O52: 0 | P52: 0 | Q52: 3 | R52: 19 | S52: 22 | T52: 12 | U52: 9 | V52: 5 | W52: 24 | X52: 9 | Y52: 100 | Z52: 0 | AA52: 0 | AB52: 0 | AC52: 0 | AD52: 0 | AE52: 0 | AF52: 0 | AG52: 0
A53: 4 | B53: 17 | C53: 37 | D53: 20 | E53: 18 | F53: 8 | G53: 31 | H53: 13 | I53: 366 | J53: 0 | K53: 0 | L53: 0 | M53: 0 | N53: 0 | O53: 0 | P53: 0 | Q53: 0 | R53: 31 | S53: 37 | T53: 15 | U53: 7 | V53: 2 | W53: 19 | X53: 10 | Y53: 122 | Z53: 0 | AA53: 0 | AB53: 0 | AC53: 0 | AD53: 0 | AE53: 0 | AF53: 0 | AG53: 0
A54: 5 | B54: 11 | C54: 20 | D54: 12 | E54: 12 | F54: 9 | G54: 32 | H54: 9 | I54: 346 | J54: 0 | K54: 1 | L54: 0 | M54: 0 | N54: 0 | O54: 0 | P54: 0 | Q54: 1 | R54: 20 | S54: 45 | T54: 20 | U54: 11 | V54: 8 | W54: 24 | X54: 8 | Y54: 136 | Z54: 0 | AA54: 0 | AB54: 0 | AC54: 0 | AD54: 0 | AE54: 1 | AF54: 0 | AG54: 1
A55: 6 | B55: 22 | C55: 43 | D55: 19 | E55: 11 | F55: 11 | G55: 24 | H55: 12 | I55: 315 | J55: 1 | K55: 0 | L55: 0 | M55: 0 | N55: 0 | O55: 0 | P55: 0 | Q55: 1 | R55: 21 | S55: 18 | T55: 11 | U55: 11 | V55: 7 | W55: 27 | X55: 9 | Y55: 104 | Z55: 0 | AA55: 0 | AB55: 0 | AC55: 0 | AD55: 0 | AE55: 0 | AF55: 0 | AG55: 0
A56: 7 | B56: 9 | C56: 26 | D56: 20 | E56: 13 | F56: 11 | G56: 29 | H56: 9 | I56: 355 | J56: 0 | K56: 0 | L56: 0 | M56: 0 | N56: 0 | O56: 0 | P56: 0 | Q56: 1 | R56: 13 | S56: 45 | T56: 28 | U56: 10 | V56: 9 | W56: 25 | X56: 9 | Y56: 142 | Z56: 0 | AA56: 0 | AB56: 0 | AC56: 0 | AD56: 0 | AE56: 0 | AF56: 0 | AG56: 0
A57: 8 | B57: 15 | C57: 30 | D57: 18 | E57: 16 | F57: 6 | G57: 28 | H57: 10 | I57: 436 | J57: 2 | K57: 0 | L57: 0 | M57: 0 | N57: 1 | O57: 1 | P57: 0 | Q57: 4 | R57: 28 | S57: 50 | T57: 32 | U57: 20 | V57: 7 | W57: 46 | X57: 11 | Y57: 195 | Z57: 0 | AA57: 0 | AB57: 0 | AC57: 0 | AD57: 0 | AE57: 0 | AF57: 0 | AG57: 0
A58: 9 | B58: 20 | C58: 28 | D58: 15 | E58: 12 | F58: 16 | G58: 43 | H58: 17 | I58: 471 | J58: 0 | K58: 0 | L58: 0 | M58: 1 | N58: 0 | O58: 0 | P58: 0 | Q58: 1 | R58: 24 | S58: 43 | T58: 27 | U58: 21 | V58: 14 | W58: 49 | X58: 21 | Y58: 200 | Z58: 0 | AA58: 0 | AB58: 0 | AC58: 0 | AD58: 0 | AE58: 0 | AF58: 0 | AG58: 0
A59: 10 | B59: 18 | C59: 30 | D59: 21 | E59: 12 | F59: 13 | G59: 35 | H59: 12 | I59: 415 | J59: 0 | K59: 0 | L59: 0 | M59: 0 | N59: 0 | O59: 0 | P59: 0 | Q59: 0 | R59: 14 | S59: 54 | T59: 20 | U59: 11 | V59: 13 | W59: 58 | X59: 11 | Y59: 184 | Z59: 0 | AA59: 0 | AB59: 0 | AC59: 0 | AD59: 0 | AE59: 0 | AF59: 0 | AG59: 0
A60: 11 | B60: 14 | C60: 27 | D60: 15 | E60: 10 | F60: 13 | G60: 44 | H60: 16 | I60: 380 | J60: 0 | K60: 0 | L60: 0 | M60: 1 | N60: 0 | O60: 0 | P60: 0 | Q60: 1 | R60: 24 | S60: 31 | T60: 19 | U60: 12 | V60: 11 | W60: 28 | X60: 18 | Y60: 145 | Z60: 0 | AA60: 0 | AB60: 0 | AC60: 0 | AD60: 0 | AE60: 0 | AF60: 0 | AG60: 0
A61: Total general | B61: 172 | C61: 315 | D61: 195 | E61: 140 | F61: 132 | G61: 408 | H61: 128 | I61: 4015 | J61: 7 | K61: 1 | L61: 0 | M61: 2 | N61: 1 | O61: 1 | P61: 1 | Q61: 16 | R61: 235 | S61: 389 | T61: 211 | U61: 131 | V61: 93 | W61: 351 | X61: 117 | Y61: 1538 | Z61: 0 | AA61: 0 | AB61: 0 | AC61: 0 | AD61: 0 | AE61: 1 | AF61: 0 | AG61: 1
A66: ANO | B66: 2024
A67: DESC_RED | B67: LA CONVENCION
A68: DESC_MICRO | B68: (Todas)
A69: DESC_ESTAB | B69: (Todas)
A70: DESC_PROV | B70: (Todas)
A71: DESC_DIST | B71: (Todas)
B73: Valores
A74: Etiquetas de fila | B74: EDAS ACUOSA C/DESH <1a | C74: EDAS ACUOSA C/DESH 1a | D74: EDAS ACUOSA C/DESH 2a | E74: EDAS ACUOSA C/DESH 3a | F74: EDAS ACUOSA C/DESH 4a | G74: EDAS ACUOSA C/DESH 5-9a | H74: EDAS ACUOSA C/DESH 10-11a | I74: EDAS ACUOSA C/DESH ATC | J74: SOSP COLERA C/DESH <1a | K74: SOSP COLERA C/DESH 1a | L74: SOSP COLERA C/DESH 2a | M74: SOSP COLERA C/DESH 3a | N74: SOSP COLERA C/DESH 4a | O74: SOSP COLERA C/DESH 5-9a | P74: SOSP COLERA C/DESH 10-11a | Q74: SOS COLERA C/DESH ATC | R74: DISENTERICA C/DESH <1a | S74: DISENTERICA C/DESH 1a | T74: DISENTERICA C/DESH 2a | U74: DISENTERICA C/DESH 3a | V74: DISENTERICA C/DESH 4a | W74: DISENTERICA C/DESH 5-9a | X74: DISENTERICA C/DESH 10-11a | Y74: DISENTERICA C/DESH ATC | Z74: PERSISTENTE C/DESH <1a | AA74: PERSISTENTE C/DESH 1a | AB74: PERSISTENTE C/DESH 2a | AC74: PERSISTENTE C/DESH 3a | AD74: PERSISTENTE C/DESH 4a | AE74: PERSISTENTE C/DESH 5-9a | AF74: PERSISTENTE C/DESH 10-11a | AG74: PERSISTENTE C/DESH ATC
A75: 1 | B75: 0 | C75: 0 | D75: 0 | E75: 0 | F75: 0 | G75: 1 | H75: 0 | I75: 0 | J75: 0 | K75: 0 | L75: 0 | M75: 0 | N75: 0 | O75: 0 | P75: 0 | Q75: 0 | R75: 0 | S75: 0 | T75: 0 | U75: 0 | V75: 0 | W75: 0 | X75: 0 | Y75: 0 | Z75: 0 | AA75: 0 | AB75: 0 | AC75: 0 | AD75: 0 | AE75: 0 | AF75: 0 | AG75: 0
A76: 2 | B76: 0 | C76: 0 | D76: 0 | E76: 0 | F76: 0 | G76: 0 | H76: 0 | I76: 0 | J76: 0 | K76: 0 | L76: 0 | M76: 0 | N76: 0 | O76: 0 | P76: 0 | Q76: 0 | R76: 0 | S76: 0 | T76: 0 | U76: 0 | V76: 0 | W76: 0 | X76: 0 | Y76: 0 | Z76: 0 | AA76: 0 | AB76: 0 | AC76: 0 | AD76: 0 | AE76: 1 | AF76: 1 | AG76: 2
A77: 3 | B77: 0 | C77: 0 | D77: 0 | E77: 0 | F77: 0 | G77: 0 | H77: 0 | I77: 0 | J77: 0 | K77: 0 | L77: 0 | M77: 0 | N77: 0 | O77: 0 | P77: 0 | Q77: 0 | R77: 0 | S77: 0 | T77: 0 | U77: 0 | V77: 0 | W77: 0 | X77: 0 | Y77: 0 | Z77: 0 | AA77: 0 | AB77: 0 | AC77: 0 | AD77: 0 | AE77: 0 | AF77: 0 | AG77: 0
A78: 4 | B78: 0 | C78: 0 | D78: 0 | E78: 1 | F78: 0 | G78: 0 | H78: 0 | I78: 0 | J78: 0 | K78: 0 | L78: 0 | M78: 0 | N78: 0 | O78: 0 | P78: 0 | Q78: 0 | R78: 0 | S78: 0 | T78: 0 | U78: 0 | V78: 0 | W78: 0 | X78: 0 | Y78: 0 | Z78: 0 | AA78: 0 | AB78: 0 | AC78: 0 | AD78: 0 | AE78: 0 | AF78: 0 | AG78: 0
A79: 5 | B79: 0 | C79: 0 | D79: 0 | E79: 0 | F79: 0 | G79: 0 | H79: 0 | I79: 0 | J79: 0 | K79: 0 | L79: 0 | M79: 0 | N79: 0 | O79: 0 | P79: 0 | Q79: 0 | R79: 0 | S79: 0 | T79: 0 | U79: 0 | V79: 0 | W79: 0 | X79: 0 | Y79: 0 | Z79: 0 | AA79: 0 | AB79: 0 | AC79: 0 | AD79: 0 | AE79: 0 | AF79: 0 | AG79: 0
A80: 6 | B80: 1 | C80: 0 | D80: 0 | E80: 0 | F80: 0 | G80: 0 | H80: 0 | I80: 0 | J80: 0 | K80: 0 | L80: 0 | M80: 0 | N80: 0 | O80: 0 | P80: 0 | Q80: 0 | R80: 0 | S80: 0 | T80: 0 | U80: 0 | V80: 0 | W80: 0 | X80: 0 | Y80: 0 | Z80: 0 | AA80: 0 | AB80: 0 | AC80: 0 | AD80: 0 | AE80: 0 | AF80: 0 | AG80: 0
A81: 7 | B81: 0 | C81: 0 | D81: 0 | E81: 0 | F81: 0 | G81: 0 | H81: 0 | I81: 0 | J81: 0 | K81: 0 | L81: 0 | M81: 0 | N81: 0 | O81: 0 | P81: 0 | Q81: 0 | R81: 0 | S81: 0 | T81: 0 | U81: 0 | V81: 0 | W81: 0 | X81: 0 | Y81: 0 | Z81: 0 | AA81: 2 | AB81: 0 | AC81: 0 | AD81: 0 | AE81: 0 | AF81: 0 | AG81: 2
A82: 8 | B82: 0 | C82: 0 | D82: 0 | E82: 0 | F82: 0 | G82: 0 | H82: 0 | I82: 0 | J82: 0 | K82: 0 | L82: 0 | M82: 0 | N82: 0 | O82: 0 | P82: 0 | Q82: 0 | R82: 0 | S82: 0 | T82: 0 | U82: 0 | V82: 0 | W82: 0 | X82: 0 | Y82: 0 | Z82: 0 | AA82: 1 | AB82: 0 | AC82: 0 | AD82: 1 | AE82: 2 | AF82: 0 | AG82: 4
A83: 9 | B83: 0 | C83: 0 | D83: 0 | E83: 0 | F83: 0 | G83: 0 | H83: 0 | I83: 0 | J83: 0 | K83: 0 | L83: 0 | M83: 0 | N83: 0 | O83: 0 | P83: 0 | Q83: 0 | R83: 0 | S83: 0 | T83: 0 | U83: 0 | V83: 0 | W83: 0 | X83: 0 | Y83: 0 | Z83: 0 | AA83: 0 | AB83: 0 | AC83: 0 | AD83: 0 | AE83: 0 | AF83: 0 | AG83: 0
A84: 10 | B84: 0 | C84: 0 | D84: 0 | E84: 0 | F84: 0 | G84: 0 | H84: 0 | I84: 0 | J84: 0 | K84: 0 | L84: 0 | M84: 0 | N84: 0 | O84: 0 | P84: 0 | Q84: 0 | R84: 0 | S84: 0 | T84: 0 | U84: 0 | V84: 0 | W84: 0 | X84: 0 | Y84: 0 | Z84: 0 | AA84: 0 | AB84: 0 | AC84: 0 | AD84: 1 | AE84: 1 | AF84: 0 | AG84: 2
A85: 11 | B85: 0 | C85: 0 | D85: 0 | E85: 0 | F85: 0 | G85: 0 | H85: 0 | I85: 0 | J85: 0 | K85: 0 | L85: 0 | M85: 0 | N85: 0 | O85: 0 | P85: 0 | Q85: 0 | R85: 0 | S85: 0 | T85: 1 | U85: 0 | V85: 0 | W85: 0 | X85: 0 | Y85: 1 | Z85: 0 | AA85: 0 | AB85: 1 | AC85: 0 | AD85: 0 | AE85: 0 | AF85: 0 | AG85: 1
A86: Total general | B86: 1 | C86: 0 | D86: 0 | E86: 1 | F86: 0 | G86: 1 | H86: 0 | I86: 0 | J86: 0 | K86: 0 | L86: 0 | M86: 0 | N86: 0 | O86: 0 | P86: 0 | Q86: 0 | R86: 0 | S86: 0 | T86: 1 | U86: 0 | V86: 0 | W86: 0 | X86: 0 | Y86: 1 | Z86: 0 | AA86: 3 | AB86: 1 | AC86: 0 | AD86: 2 | AE86: 4 | AF86: 1 | AG86: 11
A91: ANO | B91: 2024
A92: DESC_RED | B92: LA CONVENCION
A93: DESC_MICRO | B93: (Todas)
A94: DESC_ESTAB | B94: (Todas)
A95: DESC_PROV | B95: (Todas)
A96: DESC_DIST | B96: (Todas)
B98: Valores
A99: Etiquetas de fila | B99: EDAS ACUOSA C/DESH/SHOCK <1a | C99: EDAS ACUOSA C/DESH/SHOCK 1a | D99: EDAS ACUOSA C/DESH/SHOCK 2a | E99: EDAS ACUOSA C/DESH/SHOCK 3a | F99: EDAS ACUOSA C/DESH/SHOCK 4a | G99: EDAS ACUOSA C/DESH/SHOCK 5-9a | H99: EDAS ACUOSA C/DESH/SHOCK 10-11a | I99: EDAS ACUOSA C/DESH/SHOCK ATC | J99: SOSP COLERA C/DESH/SHOCK <1a | K99: SOSP COLERA C/DESH/SHOCK 1a | L99: SOSP COLERA C/DESH/SHOCK 2a | M99: SOSP COLERA C/DESH/SHOCK 3a | N99: SOSP COLERA C/DESH/SHOCK 4a | O99: SOSP COLERA C/DESH/SHOCK5-9a | P99: SOSP COLERA C/DESH/SHOCK 10-11a | Q99: SOSP COLERA C/DESH/SHOCK ATC | R99: DISENTERICA C/DESH/SHOCK <1a | S99: DISENTERICA C/DESH/SHOCK 1a | T99: DISENTERICA C/DESH/SHOCK 2a | U99: DISENTERICA C/DESH/SHOCK 3a | V99: DISENTERICA C/DESH/SHOCK 4a | W99: DISENTERICA C/DESH/SHOCK 5-9a | X99: DISENTERICA C/DESH/SHOCK 10-11a | Y99: DISENTERICA C/DESH/SHOCK ATC
A100: 1 | B100: 0 | C100: 0 | D100: 0 | E100: 0 | F100: 1 | G100: 0 | H100: 0 | I100: 1 | J100: 0 | K100: 0 | L100: 0 | M100: 0 | N100: 0 | O100: 0 | P100: 0 | Q100: 0 | R100: 0 | S100: 0 | T100: 0 | U100: 0 | V100: 0 | W100: 0 | X100: 0 | Y100: 0
A101: 2
A102: 3 | B102: 0 | C102: 0 | D102: 0 | E102: 0 | F102: 0 | G102: 0 | H102: 0 | I102: 0 | J102: 0 | K102: 0 | L102: 0 | M102: 0 | N102: 0 | O102: 0 | P102: 0 | Q102: 0 | R102: 0 | S102: 0 | T102: 0 | U102: 0 | V102: 0 | W102: 0 | X102: 0 | Y102: 0
A103: 4 | B103: 0 | C103: 0 | D103: 0 | E103: 0 | F103: 0 | G103: 0 | H103: 0 | I103: 0 | J103: 0 | K103: 0 | L103: 0 | M103: 0 | N103: 0 | O103: 0 | P103: 0 | Q103: 0 | R103: 0 | S103: 0 | T103: 0 | U103: 0 | V103: 0 | W103: 0 | X103: 0 | Y103: 0
A104: 5 | B104: 0 | C104: 0 | D104: 0 | E104: 0 | F104: 0 | G104: 0 | H104: 0 | I104: 0 | J104: 0 | K104: 0 | L104: 0 | M104: 0 | N104: 0 | O104: 0 | P104: 0 | Q104: 0 | R104: 0 | S104: 0 | T104: 0 | U104: 0 | V104: 0 | W104: 0 | X104: 0 | Y104: 0
A105: 6
A106: 7
A107: 8 | B107: 0 | C107: 0 | D107: 0 | E107: 0 | F107: 0 | G107: 0 | H107: 0 | I107: 0 | J107: 0 | K107: 0 | L107: 0 | M107: 0 | N107: 0 | O107: 0 | P107: 0 | Q107: 0 | R107: 0 | S107: 0 | T107: 0 | U107: 0 | V107: 0 | W107: 0 | X107: 0 | Y107: 0
A108: 9 | B108: 0 | C108: 0 | D108: 0 | E108: 0 | F108: 0 | G108: 0 | H108: 0 | I108: 0 | J108: 0 | K108: 0 | L108: 0 | M108: 0 | N108: 0 | O108: 0 | P108: 0 | Q108: 0 | R108: 0 | S108: 0 | T108: 0 | U108: 0 | V108: 0 | W108: 0 | X108: 0 | Y108: 0
A109: 10 | B109: 0 | C109: 0 | D109: 0 | E109: 0 | F109: 0 | G109: 0 | H109: 0 | I109: 0 | J109: 0 | K109: 0 | L109: 0 | M109: 0 | N109: 0 | O109: 0 | P109: 0 | Q109: 0 | R109: 0 | S109: 0 | T109: 0 | U109: 0 | V109: 0 | W109: 0 | X109: 0 | Y109: 0
A110: 11 | B110: 0 | C110: 0 | D110: 0 | E110: 0 | F110: 0 | G110: 0 | H110: 0 | I110: 0 | J110: 0 | K110: 0 | L110: 0 | M110: 0 | N110: 0 | O110: 0 | P110: 0 | Q110: 0 | R110: 0 | S110: 0 | T110: 0 | U110: 0 | V110: 0 | W110: 0 | X110: 0 | Y110: 0
A111: Total general | B111: 0 | C111: 0 | D111: 0 | E111: 0 | F111: 1 | G111: 0 | H111: 0 | I111: 1 | J111: 0 | K111: 0 | L111: 0 | M111: 0 | N111: 0 | O111: 0 | P111: 0 | Q111: 0 | R111: 0 | S111: 0 | T111: 0 | U111: 0 | V111: 0 | W111: 0 | X111: 0 | Y111: 0

Sheet OPERACIONAL EDAS 2012
A1: DIRECCION REGIONAL DE SALUD CUSCO
A2: DIRECCION DE ESTADISTICA E INFORMATICA Y TELECOMUNICACION
A3: ENFERMEDADES DIARREICAS AGUDAS - 2022
A5: RED DE SALUD | E5: MICRO RED | I5: PROVINCIA
A6: =MID(INICIO!E31,1,50) -> LA CONVENCION | E6: =MID(INICIO!E32,1,50) -> (ALL) | I6: =MID(INICIO!E34,1,50) -> (ALL)
A8: ESTABLECIMIENTO | E8: DISTRITO
A9: =MID(INICIO!E33,1,50) -> (ALL) | E9: =MID(INICIO!E35,1,50) -> (ALL) | I9: AÑO | J9: =MID(INICIO!C28,1,50) -> 2024
J10: .
I11: INI | K11: FIN
H12: MES | I12: =MIN(INICIO!meses) -> 1 | J12: A | K12: =VALUE(MAX(INICIO!meses)) -> 11
A15: ACTIVIDADES | E15: TOTAL DE CASOS POR GRUPOS DE EDAD | L15: MENSUAL
E16: <1a | F16: 1a | G16: 2a | H16: 3a | I16: 4a | J16: 5-9a | K16: 10-11a | L16: ATD | M16: ATC
A17: ATENCION EDA SIN COMPLICACIONES : Tipo de Diarrea y Estado de Hidratacion (A + B+ C + D ) | E17: =SUM(E18:E21) -> 414 | F17: =SUM(F18:F21) -> 705 | G17: 406 | H17: 273 | I17: 226 | J17: 761 | K17: 246 | L17: 3031 | M17: 5570
A18: A | B18: Acuosa aguda sin Deshidratacion | E18: =SUM(GETPIVOTDATA(" EDAS ACUOSAS <1a",INICIO!$A$48)) -> 172 | F18: =SUM(GETPIVOTDATA(" EDAS ACUOSAS 1a",INICIO!$A$48)) -> 315 | G18: =SUM(GETPIVOTDATA(" EDAS ACUOSAS 2a",INICIO!$A$48)) -> 195 | H18: =SUM(GETPIVOTDATA(" EDAS ACUOSAS 3a",INICIO!$A$48)) -> 140 | I18: =SUM(GETPIVOTDATA(" EDAS ACUOSAS 4a",INICIO!$A$48)) -> 132 | J18: =SUM(GETPIVOTDATA(" EDA ACUOSA 5-9a",INICIO!$A$48)) -> 408 | K18: =SUM(GETPIVOTDATA(" EDA ACUOSA 10-11a",INICIO!$A$48)) -> 128 | L18: =SUM(E18:K18) -> 1490 | M18: =SUM(GETPIVOTDATA(" EDA ACUOSA ATC",INICIO!$A$48)) -> 4015
A19: B | B19: Sospechoso de cólera sin deshidratación | E19: =SUM(GETPIVOTDATA(" SOSP COLERA <1a",INICIO!$A$48)) -> 0 | F19: =SUM(GETPIVOTDATA(" SOSP COLERA 1a",INICIO!$A$48)) -> 0 | G19: =SUM(GETPIVOTDATA(" SOSP COLERA 2a",INICIO!$A$48)) -> 0 | H19: =SUM(GETPIVOTDATA(" SOSP COLERA 3a",INICIO!$A$48)) -> 0 | I19: =SUM(GETPIVOTDATA(" SOSP COLERA 4a",INICIO!$A$48)) -> 0 | J19: =SUM(GETPIVOTDATA(" SOSP COLERA 5-9a",INICIO!$A$48)) -> 1 | K19: =SUM(GETPIVOTDATA(" SOSP COLERA 10-11a",INICIO!$A$48)) -> 0 | L19: =SUM(E19:K19) -> 1 | M19: =SUM(GETPIVOTDATA(" SOSP COLERA ATC",INICIO!$A$48)) -> 1
A20: C | B20: Disenteria sin deshidratación | E20: =SUM(GETPIVOTDATA(" DISENTERICA <1a",INICIO!$A$48)) -> 7 | F20: =SUM(GETPIVOTDATA(" DISENTERICA 1a",INICIO!$A$48)) -> 1 | G20: =SUM(GETPIVOTDATA(" DISENTERICA 2a",INICIO!$A$48)) -> 0 | H20: =SUM(GETPIVOTDATA(" DISENTERICA 3a",INICIO!$A$48)) -> 2 | I20: =SUM(GETPIVOTDATA(" DISENTERICA 4a",INICIO!$A$48)) -> 1 | J20: =SUM(GETPIVOTDATA(" DISENTERICA 5-9a",INICIO!$A$48)) -> 1 | K20: =SUM(GETPIVOTDATA(" DISENTERICA 10-11a",INICIO!$A$48)) -> 1 | L20: =SUM(E20:K20) -> 13 | M20: =SUM(GETPIVOTDATA(" DISENTERICA ATC",INICIO!$A$48)) -> 16
A21: D | B21: Diarrea persistente sin Deshidratacion | E21: =SUM(GETPIVOTDATA(" PERSISTENTE <1a",INICIO!$A$48)) -> 235 | F21: =SUM(GETPIVOTDATA(" PERSISTENTE 1a",INICIO!$A$48)) -> 389 | G21: =SUM(GETPIVOTDATA(" PERSISTENTE 2a",INICIO!$A$48)) -> 211 | H21: =SUM(GETPIVOTDATA(" PERSISTENTE 3a",INICIO!$A$48)) -> 131 | I21: =SUM(GETPIVOTDATA(" PERSISTENTE 4a",INICIO!$A$48)) -> 93 | J21: =SUM(GETPIVOTDATA(" PERSISTENTE 5-9a",INICIO!$A$48)) -> 351 | K21: =SUM(GETPIVOTDATA(" PERSISTENTE 10-11a",INICIO!$A$48)) -> 117 | L21: =SUM(E21:K21) -> 1527 | M21: =SUM(GETPIVOTDATA(" PERSISTENTE ATC",INICIO!$A$48)) -> 1538
A22: Tratamiento zinc EE.SS
A23: ATENCION EDA COMPLICADA: Tipo de Diarrea y Estado de Hidratacion (A + B+ C + D + E + F ) | E23: =SUM(E24:E29) -> 1 | F23: =SUM(F24:F29) -> 0 | G23: =SUM(G24:G29) -> 1 | H23: 1 | I23: 1 | J23: 1 | K23: 0 | L23: 5 | M23: 2
A24: A | B24: Acuosa Aguda con deshidratación | E24: =SUM(GETPIVOTDATA(" EDAS ACUOSA C/DESH <1a",INICIO!$A$73)) -> 1 | F24: =SUM(GETPIVOTDATA(" EDAS ACUOSA C/DESH 1a",INICIO!$A$73)) -> 0 | G24: =SUM(GETPIVOTDATA(" EDAS ACUOSA C/DESH 2a",INICIO!$A$73)) -> 0 | H24: =SUM(GETPIVOTDATA(" EDAS ACUOSA C/DESH 3a",INICIO!$A$73)) -> 1 | I24: =SUM(GETPIVOTDATA(" EDAS ACUOSA C/DESH 4a",INICIO!$A$73)) -> 0 | J24: =SUM(GETPIVOTDATA(" EDAS ACUOSA C/DESH 5-9a",INICIO!$A$73)) -> 1 | K24: =SUM(GETPIVOTDATA(" EDAS ACUOSA C/DESH 10-11a",INICIO!$A$73)) -> 0 | L24: =SUM(E24:K24) -> 3 | M24: =SUM(GETPIVOTDATA(" EDAS ACUOSA C/DESH ATC",INICIO!$A$73)) -> 0
A25: B | B25: Sospechoso de cólera con deshidratación | E25: =SUM(GETPIVOTDATA(" SOSP COLERA C/DESH <1a",INICIO!$A$73)) -> 0 | F25: =SUM(GETPIVOTDATA(" SOSP COLERA C/DESH 1a",INICIO!$A$73)) -> 0 | G25: =SUM(GETPIVOTDATA(" SOSP COLERA C/DESH 2a",INICIO!$A$73)) -> 0 | H25: =SUM(GETPIVOTDATA(" SOSP COLERA C/DESH 2a",INICIO!$A$73)) -> 0 | I25: =SUM(GETPIVOTDATA(" SOSP COLERA C/DESH 2a",INICIO!$A$73)) -> 0 | J25: =SUM(GETPIVOTDATA(" SOSP COLERA C/DESH 5-9a",INICIO!$A$73)) -> 0 | K25: =SUM(GETPIVOTDATA(" SOSP COLERA C/DESH 10-11a",INICIO!$A$73)) -> 0 | L25: 0 | M25: =SUM(GETPIVOTDATA(" SOS COLERA C/DESH ATC",INICIO!$A$73)) -> 0
A26: C | B26: Disentería con deshidratación | E26: =SUM(GETPIVOTDATA(" DISENTERICA C/DESH <1a",INICIO!$A$73)) -> 0 | F26: =SUM(GETPIVOTDATA(" DISENTERICA C/DESH 1a",INICIO!$A$73)) -> 0 | G26: =SUM(GETPIVOTDATA(" DISENTERICA C/DESH 2a",INICIO!$A$73)) -> 1 | H26: =SUM(GETPIVOTDATA(" DISENTERICA C/DESH 3a",INICIO!$A$73)) -> 0 | I26: =SUM(GETPIVOTDATA(" DISENTERICA C/DESH 4a",INICIO!$A$73)) -> 0 | J26: =SUM(GETPIVOTDATA(" DISENTERICA C/DESH 5-9a",INICIO!$A$73)) -> 0 | K26: =SUM(GETPIVOTDATA(" DISENTERICA C/DESH 10-11a",INICIO!$A$73)) -> 0 | L26: 1 | M26: =SUM(GETPIVOTDATA(" DISENTERICA C/DESH ATC",INICIO!$A$73)) -> 1
A27: D | B27: Acuosa Aguda con deshidratación con shock | E27: =SUM(GETPIVOTDATA(" EDAS ACUOSA C/DESH/SHOCK <1a",INICIO!$A$98)) -> 0 | F27: =SUM(GETPIVOTDATA(" EDAS ACUOSA C/DESH/SHOCK 1a",INICIO!$A$98)) -> 0 | G27: =SUM(GETPIVOTDATA(" EDAS ACUOSA C/DESH/SHOCK 2a",INICIO!$A$98)) -> 0 | H27: =SUM(GETPIVOTDATA(" EDAS ACUOSA C/DESH/SHOCK 3a",INICIO!$A$98)) -> 0 | I27: =SUM(GETPIVOTDATA(" EDAS ACUOSA C/DESH/SHOCK 4a",INICIO!$A$98)) -> 1 | J27: =SUM(GETPIVOTDATA(" EDAS ACUOSA C/DESH/SHOCK 5-9a",INICIO!$A$98)) -> 0 | K27: =SUM(GETPIVOTDATA(" EDAS ACUOSA C/DESH/SHOCK 10-11a",INICIO!$A$98)) -> 0 | L27: 1 | M27: =SUM(GETPIVOTDATA(" EDAS ACUOSA C/DESH/SHOCK ATC",INICIO!$A$98)) -> 1
A28: E | B28: Sospechoso de cólera con deshidratación con shock | E28: =SUM(GETPIVOTDATA(" SOSP COLERA C/DESH/SHOCK <1a",INICIO!$A$98)) -> 0 | F28: =SUM(GETPIVOTDATA(" SOSP COLERA C/DESH/SHOCK 1a",INICIO!$A$98)) -> 0 | G28: =SUM(GETPIVOTDATA(" SOSP COLERA C/DESH/SHOCK 2a",INICIO!$A$98)) -> 0 | H28: =SUM(GETPIVOTDATA(" SOSP COLERA C/DESH/SHOCK 3a",INICIO!$A$98)) -> 0 | I28: =SUM(GETPIVOTDATA(" SOSP COLERA C/DESH/SHOCK 4a",INICIO!$A$98)) -> 0 | J28: =SUM(GETPIVOTDATA(" SOSP COLERA C/DESH/SHOCK5-9a",INICIO!$A$98)) -> 0 | K28: =SUM(GETPIVOTDATA(" SOSP COLERA C/DESH/SHOCK 10-11a",INICIO!$A$98)) -> 0 | L28: 0 | M28: =SUM(GETPIVOTDATA(" SOSP COLERA C/DESH/SHOCK ATC",INICIO!$A$98)) -> 0
A29: F | B29: Disenteria con deshidratación con shock | E29: =SUM(GETPIVOTDATA(" DISENTERICA C/DESH/SHOCK <1a",INICIO!$A$98)) -> 0 | F29: =SUM(GETPIVOTDATA(" DISENTERICA C/DESH/SHOCK 1a",INICIO!$A$98)) -> 0 | G29: =SUM(GETPIVOTDATA(" DISENTERICA C/DESH/SHOCK 2a",INICIO!$A$98)) -> 0 | H29: =SUM(GETPIVOTDATA(" DISENTERICA C/DESH/SHOCK 3a",INICIO!$A$98)) -> 0 | I29: =SUM(GETPIVOTDATA(" DISENTERICA C/DESH/SHOCK 4a",INICIO!$A$98)) -> 0 | J29: =SUM(GETPIVOTDATA(" DISENTERICA C/DESH/SHOCK 5-9a",INICIO!$A$98)) -> 0 | K29: =SUM(GETPIVOTDATA(" DISENTERICA C/DESH/SHOCK 10-11a",INICIO!$A$98)) -> 0 | L29: 0 | M29: =SUM(GETPIVOTDATA(" DISENTERICA C/DESH/SHOCK ATC",INICIO!$A$98)) -> 0
A30: Respuesta al tratamiento
A31: A | B31: PLAN "A" | C31: 3Aa | D31: Curado
C32: 3Ab | D32: Fracasado
A33: B | B33: PLAN "B" | C33: 3Ba | D33: Mejorado
C34: 3Bb | D34: Fracasado
A35: C | B35: PLAN "C" | C35: 3Ca | D35: Mejorado
C36: 3Cb | D36: Fallecido
A37: Hospitalizado por diarrea (paciente con mas de 24 horas en el EESS)
A38: Intervenciones preventivas
A39: A | B39: Nº de viviendas intervenidas
A40: B | B40: Nº de visitas realizadas
A41: C | B41: Nº de viviendas con SID adecuado
A42: D | B42: Nº de viviendas intervenidas según clase de Alerta | D42: Alerta A
D43: Alerta B
D44: Alerta C
A45: Atenciones por EDA
A46: A | B46: Suma de casos nuevos + controles + reingresos
A47: Total atendidos
A48: A | B48: Por todas las diarreas (nuevos en el año)*
A49: B | B49: Por todas las causas (nuevos en el año)*
A50: Mortalidad por EDA
A51: A | B51: En el establecimiento MINSA
A52: B | B52: En la comunidad (Municipalidad + Comunidad)
A53: Mortalidad por todas las causas
A54: A | B54: En el establecimiento MINSA
A55: B | B55: En la comunidad (Municipalidad + Comunidad)
A56: UROCS Comunales Nº informantes Urb.____ Urb.Mar.___ Rur.____
A57: A | B57: Tratamientos utilizados Plan "A"
A58: B | B58: Tratamientos utilizados Plan "B"

Sheet EDAS NO COMPLICADAS
A2: ANO | B2: 2024
A3: DESC_MICRO | B3: (Todas)
A4: DESC_PROV | B4: (Todas)
A5: DESC_DIST | B5: (Todas)
A6: DESC_ESTAB | B6: (Todas)
A7: MES | B7: (Varios elementos)
B9: Valores
A10: DESC_RED | B10: EDAS ACUOSAS <1a | C10: EDAS ACUOSAS 1a | D10: EDAS ACUOSAS 2a | E10: EDAS ACUOSAS 3a | F10: EDAS ACUOSAS 4a | G10: EDA ACUOSA 5-9a | H10: EDA ACUOSA 10-11a | I10: EDA ACUOSA ATC | J10: DISENTERICA <1a | K10: DISENTERICA 1a | L10: DISENTERICA 2a | M10: DISENTERICA 3a | N10: DISENTERICA 4a | O10: DISENTERICA 5-9a | P10: DISENTERICA 10-11a | Q10: DISENTERICA ATC | R10: PERSISTENTE <1a | S10: PERSISTENTE 1a | T10: PERSISTENTE 2a | U10: PERSISTENTE 3a | V10: PERSISTENTE 4a | W10: PERSISTENTE 5-9a | X10: PERSISTENTE 10-11a | Y10: PERSISTENTE ATC
A11: LA CONVENCION | B11: 158 | C11: 288 | D11: 180 | E11: 130 | F11: 119 | G11: 364 | H11: 112 | I11: 3635 | J11: 7 | K11: 1 | L11: 0 | M11: 1 | N11: 1 | O11: 1 | P11: 1 | Q11: 15 | R11: 211 | S11: 358 | T11: 192 | U11: 119 | V11: 82 | W11: 323 | X11: 99 | Y11: 1393
A12: QUILLABAMBA | B12: 16 | C12: 28 | D12: 17 | E12: 12 | F12: 13 | G12: 35 | H12: 7 | I12: 243 | J12: 0 | K12: 0 | L12: 0 | M12: 0 | N12: 0 | O12: 1 | P12: 0 | Q12: 1 | R12: 24 | S12: 32 | T12: 18 | U12: 6 | V12: 5 | W12: 24 | X12: 1 | Y12: 117
A13: Total general | B13: 174 | C13: 316 | D13: 197 | E13: 142 | F13: 132 | G13: 399 | H13: 119 | I13: 3878 | J13: 7 | K13: 1 | L13: 0 | M13: 1 | N13: 1 | O13: 2 | P13: 1 | Q13: 16 | R13: 235 | S13: 390 | T13: 210 | U13: 125 | V13: 87 | W13: 347 | X13: 100 | Y13: 1510

Sheet Hoja1

Sheet Hoja2
